{"text_format":"1","workbook":"xlsx","n_sheets":14,"sheets":["Gesamtübersicht","Planungsraum 1","Planungsraum 2","Planungsraum 3","Planungsraum 10","Planungsraum 11","Planungsraum 12","Planungsraum 13","Planungsraum 14","Planungsraum 15","Planungsraum 16","Planungsraum 17","Planungsraum 18","Planungsraum 19"],"not_rendered":{"charts":0,"images":1,"macros":1,"external_links":0,"defined_names":13,"comments":0,"pivot_tables":0},"unopened":[],"bounds":{"document_bytes":16777216,"sheet_cells":100000,"rows_first":2000,"rows_last":500,"rows_between":2000,"halvings":0,"cell_chars":16384,"cell_head_chars":4096},"cells_cut":0,"cells_raw":0,"read":"whole","date_system":"1900"}

{"sheet":"Gesamtübersicht","index":0,"n_rows":40,"n_cols":10,"rows_kept":40,"cut":false,"hidden":false,"merged":[]}
[]
[null,"Bestands- und Bedarfserhebung Kindertageseinrichtungen und Kindertagespflege 2020/2021 "]
[null,null,null,"Bedarfsplan"]
[]
[]
[]
[]
[]
[]
[]
[]
[]
[]
[]
[]
[]
[]
[]
[]
[]
[]
[]
[]
[]
[]
[]
[]
[]
[]
[]
[]
[]
[]
[]
[]
[]
[]
[]
[]
[null,null,null,null,null,null,null,null,null,"Stand: 01.03.2023"]

{"sheet":"Planungsraum 1","index":1,"n_rows":57,"n_cols":11,"rows_kept":57,"cut":false,"hidden":false,"merged":[[3,8,4,8],[3,10,4,10],[3,0,4,0],[3,1,4,1],[3,2,4,2],[3,3,3,5],[3,6,4,6],[3,7,4,7]]}
[null,null,"KiTa-Bedarfsplan",null,null,null,"Kreis Plön","Planungsraum 2","Stadt Plön"]
[]
[null,null,null,null,"Abschnitt 1",null,null,null,null,"Abschnitt 2"]
["Nr.","Ortsteil","Gruppenart","Gruppengröße",null,null,"Öffnungszeiten/Woche","Sonstige Festlegungen","Kitaname\n","Träger","Förderzeitraum"]
[null,null,null,"U3","Ü3","Hort"]
[1,"Stadt Plön","Krippengruppe",10,null,null,30,null,"Ev.-Luth. Kindertagesstätte \"An der Osterkirche\"","Ev.-Luth. Kirchengemeinde Plön","01.01.2021-31.12.2024"]
[2,"Stadt Plön","Krippengruppe",10,null,null,40,null,"Ev.-Luth. Kindertagesstätte \"An der Osterkirche\"","Ev.-Luth. Kirchengemeinde Plön","01.01.2021-31.12.2024"]
[3,"Stadt Plön","Kindergartengruppe",null,20,null,30,null,"Ev.-Luth. Kindertagesstätte \"An der Osterkirche\"","Ev.-Luth. Kirchengemeinde Plön","01.01.2021-31.12.2024"]
[4,"Stadt Plön","Kindergartengruppe",null,20,null,40,null,"Ev.-Luth. Kindertagesstätte \"An der Osterkirche\"","Ev.-Luth. Kirchengemeinde Plön","01.01.2021-31.12.2024"]
[5,"Stadt Plön","Kindergartengruppe",null,20,null,30,null,"Ev.-Luth. Kindertagesstätte \"An der Osterkirche\"","Ev.-Luth. Kirchengemeinde Plön","01.01.2021-31.12.2024"]
[6,"Stadt Plön","Erg.- u. Rz.-Gr.: mittlere Kindergartengruppe (mit Zustimmung des Kreises bis zu einer Regel-Kindergartengruppe erweiterbar)",null,20,null,10,null,"Ev.-Luth. Kindertagesstätte \"An der Osterkirche\"","Ev.-Luth. Kirchengemeinde Plön","01.01.2021-31.12.2024"]
[7,"Stadt Plön","Erg.- u. Rz.-Gr.: Krippengruppe",null,20,null,5,null,"Ev.-Luth. Kindertagesstätte \"An der Osterkirche\"","Ev.-Luth. Kirchengemeinde Plön","01.01.2021-31.12.2024"]
[8,"Stadt Plön","Erg.- u. Rz.-Gr.:kleine Kindergartengruppe (mit Zustimmung des Kreises bis zu einer Regel-Kindergartengruppe erweiterbar)",10,null,null,5,null,"Ev.-Luth. Kindertagesstätte \"An der Osterkirche\"","Ev.-Luth. Kirchengemeinde Plön","01.01.2021-31.12.2024"]
[9,"Stadt Plön","Erg.- u. Rz.-Gr.:Kindergartengruppe",null,20,null,5,null,"Ev.-Luth. Kindertagesstätte \"An der Osterkirche\"","Ev.-Luth. Kirchengemeinde Plön","01.01.2021-31.12.2024"]
[10,"Stadt Plön","Kindergartengruppe",null,20,null,25,null,"Ev.-Luth. Kindertagesstätte Regenbogenhaus","Ev.-Luth. Kirchengemeinde Plön","01.01.2021-31.12.2024"]
[11,"Stadt Plön","Erg. u. Rz. Kindergartengruppe",null,20,null,5,null,"Ev.-Luth. Kindertagesstätte Regenbogenhaus","Ev.-Luth. Kirchengemeinde Plön","01.01.2021-31.12.2024"]
[12,"Stadt Plön","Hortgruppe (20)",null,null,20,17.5,null,"Ev.-Luth. Kindertagesstätte Regenbogenhaus","Ev.-Luth. Kirchengemeinde Plön","01.01.2021-31.12.2024"]
[13,"Stadt Plön","Krippengruppe",10,null,null,25,null,"Ev.-Luth. Kindertagesstätte Regenbogenhaus","Ev.-Luth. Kirchengemeinde Plön","01.01.2021-31.12.2024"]
[14,"Stadt Plön","Erg. u. Rz. Krippengruppe",10,null,null,5,null,"Ev.-Luth. Kindertagesstätte Regenbogenhaus","Ev.-Luth. Kirchengemeinde Plön","01.01.2021-31.12.2024"]
[15,"Stadt Plön","Kindergartengruppe",null,20,null,25,null,"Ev.-Luth. Kindertagesstätte Regenbogenhaus","Ev.-Luth. Kirchengemeinde Plön","01.01.2021-31.12.2024"]
[16,"Stadt Plön","Erg. u. Rz. Kindergartengruppe",null,20,null,5,null,"Ev.-Luth. Kindertagesstätte Regenbogenhaus","Ev.-Luth. Kirchengemeinde Plön","01.01.2021-31.12.2024"]
[17,"Stadt Plön","Erg. u. Rz. kleine Kindergartengruppe",null,10,null,10,null,"Ev.-Luth. Kindertagesstätte Regenbogenhaus","Ev.-Luth. Kirchengemeinde Plön","01.01.2021-31.12.2024"]
[18,"Stadt Plön","Erg. u. Rz. kleine altersgemischte Gruppe",3,4,null,5,null,"Ev.-Luth. Kindertagesstätte Regenbogenhaus","Ev.-Luth. Kirchengemeinde Plön","01.01.2021-31.12.2024"]
[19,"Stadt Plön","altersgemischte Gruppe",5,10,null,25,null,"Ev.-Luth. Kindertagesstätte Regenbogenhaus","Ev.-Luth. Kirchengemeinde Plön","01.01.2021-31.12.2024"]
[20,"Stadt Plön","Erg. u. Rz. altersgemischte Gruppe",5,10,null,15,null,"Ev.-Luth. Kindertagesstätte Regenbogenhaus","Ev.-Luth. Kirchengemeinde Plön","01.01.2021-31.12.2024"]
[21,"Stadt Plön","Natur-Kindergartengruppe",null,16,null,30,null,"Ev.-Luth. Kindertagesstätte Regenbogenhaus","Ev.-Luth. Kirchengemeinde Plön","01.01.2021-31.12.2024"]
[22,"Stadt Plön","Erg. u. Rz. mittlere Kindergartengruppe (15) (mit Zustimmung des Kreises bis zu einer Regel-Kindergartengruppe erweiterbar)",null,15,null,2.5,null,"Freier Kindergarten Plön e.V.","Freier Kindergarten Plön e.V.","01.01.2021-31.12.2024"]
[23,"Stadt Plön","Erg. u. Rz. mittlere Kindergartengruppee (15) (mit Zustimmung des Kreises bis zu einer Regel-Kindergartengruppe erweiterbar)",null,15,null,12.5,null,"Freier Kindergarten Plön e.V.","Freier Kindergarten Plön e.V.","01.01.2021-31.12.2024"]
[24,"Stadt Plön","Kindergartengruppe",null,20,null,25,null,"Freier Kindergarten Plön e.V.","Freier Kindergarten Plön e.V.","01.01.2021-31.12.2024"]
[25,"Stadt Plön","Kindergartengruppe",null,20,null,40,null,"Freier Kindergarten Plön e.V.","Freier Kindergarten Plön e.V.","01.01.2021-31.12.2024"]
[26,"Stadt Plön","Kindergartengruppe",null,20,null,35,null,"Johanniter Kita am Trammer See","Johanniter-Unfall-Hilfe e.V. (PLÖ)","01.01.2021-31.12.2024"]
[27,"Stadt Plön","altersgemischte Gruppe",5,10,null,35,null,"Johanniter Kita am Trammer See","Johanniter-Unfall-Hilfe e.V. (PLÖ)","01.01.2021-31.12.2024"]
[28,"Stadt Plön","Erg. u. Rz. Kindergartengruppe",null,20,null,5,null,"Johanniter Kita am Trammer See","Johanniter-Unfall-Hilfe e.V. (PLÖ)","01.01.2021-31.12.2024"]
[29,"Stadt Plön","Erg. u. Rz. Krippengruppe",10,null,null,5,null,"Johanniter Kita am Trammer See","Johanniter-Unfall-Hilfe e.V. (PLÖ)","01.01.2021-31.12.2024"]
[30,"Stadt Plön","Krippengruppe",10,null,null,35,null,"Johanniter Kita am Trammer See","Johanniter-Unfall-Hilfe e.V. (PLÖ)","01.01.2021-31.12.2024"]
[31,"Stadt Plön","Erg. u. Rz. altersgemischte Gruppe",5,10,null,7.5,null,"Johanniter Kita am Trammer See","Johanniter-Unfall-Hilfe e.V. (PLÖ)","01.01.2021-31.12.2024"]
[32,"Stadt Plön","Kindergartengruppe",null,20,null,30,null,"Kita SeeBLÜTE","Die Gemeinnützigen von Plön e.V.","01.01.2021-31.12.2024"]
[33,"Stadt Plön","Erg. u. Rz. mittlere Kindergartengruppe(15)",null,15,null,10,null,"Kita SeeBLÜTE","Die Gemeinnützigen von Plön e.V.","01.01.2021-31.12.2024"]
[34,"Stadt Plön","Erg. u. Rz. kleine Krippengruppe (5)",5,null,null,15,null,"Kita SeeBLÜTE","Die Gemeinnützigen von Plön e.V.","01.01.2021-31.12.2024"]
[35,"Stadt Plön","Erg. u. Rz. altersgemischte Gruppe",5,10,null,5,null,"Kita SeeBLÜTE","Die Gemeinnützigen von Plön e.V.","01.01.2021-31.12.2024"]
[36,"Stadt Plön","Erg. u. Rz. altersgemischte Gruppe",5,10,null,5,null,"Kita SeeBLÜTE","Die Gemeinnützigen von Plön e.V.","01.01.2021-31.12.2024"]
[37,"Stadt Plön","altersgemischte Gruppe",5,10,null,30,null,"Kita SeeBLÜTE","Die Gemeinnützigen von Plön e.V.","01.01.2021-31.12.2024"]
[38,"Stadt Plön","altersgemischte Gruppe",5,10,null,30,null,"Kita SeeBLÜTE","Die Gemeinnützigen von Plön e.V.","01.01.2021-31.12.2024"]
[39,"Stadt Plön","altersgemischte Gruppe",5,10,null,30,null,"Kreiszwerge e.V. ","Kreiszwerge Plön e.V. ","01.01.2021-31.12.2024"]
[40,"Stadt Plön","Kindergartengruppe",null,20,null,32.5,null,"Waldorfkindergarten Plön ","Verein zur Förderung der Waldorfpädagogik in Plön e.V.","01.01.2021-31.12.2024"]
[41]
["Plätze U3",null,null,{"$f":"SUMIF(C6:C46,\"Krippengruppe\",D6:D46)+SUMIF(C6:C46,\"altersgemischte Gruppe\",D6:D46)+SUMIF(C6:C76,\"kleine Krippengruppe\",D6:D46)","v":65},null,null,{"$f":"AVERAGE(G6:G46)","v":19.4375},"(Std. Mittelwert)"]
["Plätze Ü3",null,null,null,{"$f":"SUMIF(C6:C46, \"Kindergartengruppe\", E6:E46) + SUMIF(C6:C46, \"altersgemischte Gruppe\", E6:E46) + SUMIF(C6:C46, \"Natur-Kindergartengruppe\", E6:E46) + SUMIF(C6:C46, \"mittlere Kindergartengruppe*\", E6:E46)","v":266},{"$f":"SUM(F6:F46)","v":20}]
["Plätze gesamt",null,null,{"$f":"SUM(D47:F48)","v":351}]
[null,null,null,"Kindertagespflege"]
["Plätze U3",null,null,20]
["Plätze Ü3"]
["Plätze gesamt"]
[null,null,null,null,"Plätze gesamt"]
["Plätze U3",null,null,{"$f":"SUM(D47+D51)","v":85}]
["Plätze Ü3",null,null,null,{"$f":"SUM(E48+E52)","v":266},{"$f":"SUM(F48+F52)","v":20}]
["Plätze gesamt",null,null,{"$f":"SUM(D55:F56)","v":371}]

{"sheet":"Planungsraum 2","index":2,"n_rows":87,"n_cols":11,"rows_kept":87,"cut":false,"hidden":false,"merged":[[3,10,4,10],[3,0,4,0],[3,3,3,5],[3,2,4,2],[3,1,4,1],[3,6,4,6],[3,7,4,7],[3,8,4,8]]}
[null,null,"KiTa-Bedarfsplan",null,null,null,"Kreis Plön","Planungsraum 2","Preetz"]
[]
[null,null,null,null,"Abschnitt 1",null,null,null,null,"Abschnitt 2"]
["Nr.","Ortsteil","Gruppenart","Gruppengröße",null,null,"Öffnungszeiten/Woche","Sonstige Festlegungen","Kitaname\n","Träger","Förderzeitraum"]
[null,null,null,"U3","Ü3","Hort"]
[1,"Stadt Preetz","Kindergartengruppe",null,20,null,25,null,"Ev.-Luth. Kindergarten Preetz \"Ein Garten für Kinder\"","Ev.-Luth. Kirchengemeinde Preetz","01.01.2021-31.12.2024"]
[2,"Stadt Preetz","Erg. u. Rz. Kindergartengruppe",null,20,null,5,null,"Ev.-Luth. Kindergarten Preetz \"Ein Garten für Kinder\"","Ev.-Luth. Kirchengemeinde Preetz","01.01.2021-31.12.2024"]
[3,"Stadt Preetz","Erg. u. Rz. mittlere Hortgruppe(15)",null,null,15,5,null,"Ev.-Luth. Kindergarten Preetz \"Ein Garten für Kinder\"","Ev.-Luth. Kirchengemeinde Preetz","01.01.2021-31.12.2024"]
[4,"Stadt Preetz","Erg. u. Rz. kleine Kindergartengruppe (10)",null,10,null,5,null,"Ev.-Luth. Kindergarten Preetz \"Ein Garten für Kinder\"","Ev.-Luth. Kirchengemeinde Preetz","01.01.2021-31.12.2024"]
[5,"Stadt Preetz","Erg. u. Rz. Kindergartengruppe",null,20,null,7.5,null,"Ev.-Luth. Kindergarten Preetz \"Ein Garten für Kinder\"","Ev.-Luth. Kirchengemeinde Preetz","01.01.2021-31.12.2024"]
[6,"Stadt Preetz","Erg. u. Rz. Kindergartengruppe",null,20,null,5,null,"Ev.-Luth. Kindergarten Preetz \"Ein Garten für Kinder\"","Ev.-Luth. Kirchengemeinde Preetz","01.01.2021-31.12.2024"]
[7,"Stadt Preetz","Erg. u. Rz. Kindergartengruppe",null,20,null,5,null,"Ev.-Luth. Kindergarten Preetz \"Ein Garten für Kinder\"","Ev.-Luth. Kirchengemeinde Preetz","01.01.2021-31.12.2024"]
[8,"Stadt Preetz","Erg. u. Rz. mittlere Kindergartengruppe (15)",null,15,null,20,null,"Ev.-Luth. Kindergarten Preetz \"Ein Garten für Kinder\"","Ev.-Luth. Kirchengemeinde Preetz","01.01.2021-31.12.2024"]
[9,"Stadt Preetz","Erg. u. Rz. Kindergartengruppe",null,20,null,5,null,"Ev.-Luth. Kindergarten Preetz \"Ein Garten für Kinder\"","Ev.-Luth. Kirchengemeinde Preetz","01.01.2021-31.12.2024"]
[10,"Stadt Preetz","Erg. u. Rz. mittlere Kindergartengruppe (15)",null,15,null,20,null,"Ev.-Luth. Kindergarten Preetz \"Ein Garten für Kinder\"","Ev.-Luth. Kirchengemeinde Preetz","01.01.2021-31.12.2024"]
[11,"Stadt Preetz","Kindergartengruppe",null,20,null,25,null,"Ev.-Luth. Kindergarten Preetz \"Ein Garten für Kinder\"","Ev.-Luth. Kirchengemeinde Preetz","01.01.2021-31.12.2024"]
[12,"Stadt Preetz","Hortgruppe",null,null,20,20,null,"Ev.-Luth. Kindergarten Preetz \"Ein Garten für Kinder\"","Ev.-Luth. Kirchengemeinde Preetz","01.01.2021-31.12.2024"]
[13,"Stadt Preetz","Kindergartengruppe",null,20,null,25,null,"Ev.-Luth. Kindergarten Preetz \"Ein Garten für Kinder\"","Ev.-Luth. Kirchengemeinde Preetz","01.01.2021-31.12.2024"]
[14,"Stadt Preetz","kleine Hortngruppe (10)",null,null,10,20,null,"Ev.-Luth. Kindergarten Preetz \"Ein Garten für Kinder\"","Ev.-Luth. Kirchengemeinde Preetz","01.01.2021-31.12.2024"]
[15,"Stadt Preetz","Kindergartengruppe",null,20,null,25,null,"Ev.-Luth. Kindergarten Preetz \"Ein Garten für Kinder\"","Ev.-Luth. Kirchengemeinde Preetz","01.01.2021-31.12.2024"]
[16,"Stadt Preetz","integrative Kindergartengruppe",null,15,null,30,null,"Integrativer Kindergarten Regenbogen","Lebenshilfewerk Kreis Plön gGmbH","01.01.2021-31.12.2024"]
[17,"Stadt Preetz","integrative Kindergartengruppe",null,15,null,30,null,"Integrativer Kindergarten Regenbogen","Lebenshilfewerk Kreis Plön gGmbH","01.01.2021-31.12.2024"]
[18,"Stadt Preetz","integrative Kindergartengruppe",null,15,null,30,null,"Integrativer Kindergarten Regenbogen","Lebenshilfewerk Kreis Plön gGmbH","01.01.2021-31.12.2024"]
[19,"Stadt Preetz","integrative Kindergartengruppe",null,15,null,32.5,null,"Integrativer Kindergarten Regenbogen","Lebenshilfewerk Kreis Plön gGmbH","01.01.2021-31.12.2024"]
[20,"Stadt Preetz","Kindergartengruppe",null,20,null,30,null,"Integrativer Kindergarten Regenbogen","Lebenshilfewerk Kreis Plön gGmbH"]
[21,"Stadt Preetz","Kindergartengruppe (mit Ausnahmebewilligung FK-Schlüssel 1,5)",null,20,null,35,null,"Kindergarten \"Bunte Kiste\"","Stadt Preetz","01.01.2021-31.12.2024"]
[22,"Stadt Preetz","Erg. u. Rz. Kindergartengruppe (mit Ausnahmebewilligung FK-Schlüssel 1,5)",null,20,null,10,null,"Kindergarten \"Bunte Kiste\"","Stadt Preetz","01.01.2021-31.12.2024"]
[23,"Stadt Preetz","Erg. u. Rz. Krippengruppe",10,null,null,10,null,"Kindergarten \"Bunte Kiste\"","Stadt Preetz","01.01.2021-31.12.2024"]
[24,"Stadt Preetz","Erg. u. Rz. kleine Krippengruppe (5)",5,null,null,10,null,"Kindergarten \"Bunte Kiste\"","Stadt Preetz","01.01.2021-31.12.2024"]
[25,"Stadt Preetz","Erg. u. Rz. mittlere Kindergartengruppe (15)",null,15,null,10,null,"Kindergarten \"Bunte Kiste\"","Stadt Preetz","01.01.2021-31.12.2024"]
[26,"Stadt Preetz","Krippengruppe",10,null,null,35,null,"Kindergarten \"Bunte Kiste\"","Stadt Preetz","01.01.2021-31.12.2024"]
[27,"Stadt Preetz","Krippengruppe",10,null,null,35,null,"Kindergarten \"Bunte Kiste\"","Stadt Preetz","01.01.2021-31.12.2024"]
[28,"Stadt Preetz","Kindergartengruppe (mit Ausnahmebewilligung FK-Schlüssel 1,5)",null,20,null,35,null,"Kindergarten \"Bunte Kiste\"","Stadt Preetz","01.01.2021-31.12.2024"]
[29,"Stadt Preetz","kleine Krippengruppe",5,null,null,35,null,"Kindergarten \"Bunte Kiste\"","Stadt Preetz","01.10.2021-31.12.2024"]
[30,"Stadt Preetz","Erg. u. Rz. Kindergartengruppe (mit Ausnahmebewilligung FK-Schlüssel 1,5)",null,20,null,10,null,"Kindergarten \"Hufenweg\"","Stadt Preetz","01.01.2021-31.12.2024"]
[31,"Stadt Preetz","mittlere Kindergartengruppe",null,15,null,25,null,"Kindergarten \"Hufenweg\"","Stadt Preetz","01.01.2021-31.12.2024"]
[32,"Stadt Preetz","Kindergartengruppe (mit Ausnahmebewilligung FK-Schlüssel 1,5)",null,20,null,25,null,"Kindergarten \"Hufenweg\"","Stadt Preetz","01.01.2021-31.12.2024"]
[33,"Stadt Preetz","Erg. u. Rz. mittlere Kindergartengruppe (15)",null,15,null,10,null,"Kindergarten \"Kleine Bunte Kiste\"","Stadt Preetz","01.01.2021-31.12.2024"]
[34,"Stadt Preetz","Kindergartengruppe (mit Ausnahmebewilligung FK-Schlüssel 1,5)",null,20,null,25,null,"Kindergarten \"Kleine Bunte Kiste\"","Stadt Preetz","01.01.2021-31.12.2024"]
[35,"Stadt Preetz","Kindergartengruppe (mit Ausnahmebewilligung FK-Schlüssel 1,5)",null,20,null,25,null,"Kindergarten \"Kleine Bunte Kiste\"","Stadt Preetz","01.01.2021-31.12.2024"]
[36,"Stadt Preetz","Erg. u. Rz. mittlere Hortgruppe (15",null,null,15,15,null,"Kinderhort","Stadt Preetz","01.01.2021-31.12.2024"]
[37,"Stadt Preetz","mittlere Hortgruppe",null,null,15,17.5,null,"Kinderhort","Stadt Preetz","01.01.2021-31.12.2024"]
[38,"Stadt Preetz","mittlere Hortgruppe",null,null,15,17.5,null,"Kinderhort","Stadt Preetz","01.01.2021-31.12.2024"]
[39,"Stadt Preetz","Kindergartengruppe",null,20,null,25,null,"Kindertagesstätte \"Die Rasselbande\"","Stadt Preetz","01.01.2021-31.12.2024"]
[40,"Stadt Preetz","Erg. u. Rz. Kindergartengruppe",null,20,null,10,null,"Kindertagesstätte \"Die Rasselbande\"","Stadt Preetz","01.01.2021-31.12.2024"]
[41,"Stadt Preetz","Erg. u. Rz. Kindergartengruppe",null,20,null,20,null,"Kindertagesstätte \"Die Rasselbande\"","Stadt Preetz","01.01.2021-31.12.2024"]
[42,"Stadt Preetz","Erg. u. Rz. Kindergartengruppe",null,20,null,20,null,"Kindertagesstätte \"Die Rasselbande\"","Stadt Preetz","01.01.2021-31.12.2024"]
[43,"Stadt Preetz","Kindergartengruppe",null,20,null,25,null,"Kindertagesstätte \"Die Rasselbande\"","Stadt Preetz","01.01.2021-31.12.2024"]
[44,"Stadt Preetz","Kindergartengruppe",null,20,null,25,null,"Kindertagesstätte \"Die Rasselbande\"","Stadt Preetz","01.01.2021-31.12.2024"]
[45,"Stadt Preetz","Krippengruppe",10,null,null,35,null,"Kindertagesstätte \"Die Rasselbande\"","Stadt Preetz","01.01.2021-31.12.2024"]
[46,"Stadt Preetz","Kindergartengruppe",null,20,null,25,null,"Kindertagesstätte \"Die Rasselbande\"","Stadt Preetz","01.01.2021-31.12.2024"]
[47,"Stadt Preetz","Kindergartengruppe",null,20,null,25,null,"Kindertagesstätte \"Die Rasselbande\"","Stadt Preetz","01.01.2021-31.12.2024"]
[48,"Stadt Preetz","Erg. u. Rz. mittlere Kindergartengruppe (15)",null,15,null,5,null,"Kindertagesstätte \"Leuchtturm\"","Stadt Preetz","01.01.2021-31.12.2024"]
[49,"Stadt Preetz","Erg. u. Rz. mittlere Kindergartengruppe (15)",null,15,null,5,null,"Kindertagesstätte \"Leuchtturm\"","Stadt Preetz","01.01.2021-31.12.2024"]
[50,"Stadt Preetz","altersgemischte Gruppe",5,10,null,35,null,"Kindertagesstätte \"Leuchtturm\"","Stadt Preetz","01.01.2021-31.12.2024"]
[51,"Stadt Preetz","Kindergartengruppe (mit Ausnahmebewilligung FK-Schlüssel 1,5)",null,20,null,35,null,"Kindertagesstätte \"Leuchtturm\"","Stadt Preetz","01.01.2021-31.12.2024"]
[52,"Stadt Preetz","Krippengruppe",10,null,null,35,null,"Kindertagesstätte \"Leuchtturm\"","Stadt Preetz","01.01.2021-31.12.2024"]
[53,"Stadt Preetz","Kindergartengruppe",null,20,null,35,null,"Kindertagesstätte \"Leuchtturm\"","Stadt Preetz","01.07.2021-31.12.2024"]
[54,"Stadt Preetz","Kindergartengruppe (mit Ausnahmebewilligung FK-Schlüssel 1,5)",null,20,null,35,null,"Kindertagesstätte \"Leuchtturm\"","Stadt Preetz","01.01.2021-31.12.2024"]
[55,"Stadt Preetz","mittlere Hortgruppe (15)",null,null,15,18,null,"Kita Spielraum","gogenio gGmbH","01.01.2021-31.12.2024"]
[56,"Stadt Preetz","Krippengruppe",10,null,null,25,null,"Kita Spielraum","gogenio gGmbH","01.01.2021-31.12.2024"]
[57,"Stadt Preetz","Erg. u. Rz. Kindergartengruppe",null,20,null,12.5,null,"Kita Spielraum","gogenio gGmbH","01.01.2021-31.12.2024"]
[58,"Stadt Preetz","Erg. u. Rz. kleine Krippengruppe",null,10,null,8.5,null,"Kita Spielraum","gogenio gGmbH","01.01.2021-31.12.2024"]
[59,"Stadt Preetz","Kindergartengruppe",null,20,null,37.5,null,"Kita Spielraum","gogenio gGmbH","01.01.2021-31.12.2024"]
[60,"Stadt Preetz","Kindergartengruppe",null,20,null,30,null,"Kindergarten der freien Schule Leben und Lernen","Freie Schule Leben und Lernen e.V.","01.01.2021-31.12.2024"]
[61,"Stadt Preetz","Natur-Kindergartengruppe",null,16,null,24,null,"Naturkindergarten \"Die Wühlmäuse\" e.V.","\"Die Wühlmäuse\" e.V.","01.01.2021-31.12.2024"]
[62,"Stadt Preetz","Natur-Kindergartengruppe",null,16,null,24,null,"Naturkindergarten \"Die Wühlmäuse\" e.V.","\"Die Wühlmäuse\" e.V.","01.01.2021-31.12.2024"]
[63,"Stadt Preetz","Natur-Kindergartengruppe",null,16,null,24,null,"Naturkindergarten \"Die Wühlmäuse\" e.V.","\"Die Wühlmäuse\" e.V.","01.01.2021-31.12.2024"]
[null,"Stadt Preetz","Natur-Kindergartengruppe",null,16,null,24,null,"Naturkindergarten \"Die Wühlmäuse\" e.V.","\"Die Wühlmäuse\" e.V.","01.01.2021-31.12.2024"]
[null,"Stadt Preetz","Erg. u. Rz. Natur-Kindergartengruppe",null,16,null,7.5,null,"Naturkindergarten \"Die Wühlmäuse\" e.V.","\"Die Wühlmäuse\" e.V.","01.01.2021-31.12.2024"]
[null,"Stadt Preetz","Erg. u. Rz. Natur-Kindergartengruppe",null,16,null,7.5,null,"Naturkindergarten \"Die Wühlmäuse\" e.V.","\"Die Wühlmäuse\" e.V.","01.01.2021-31.12.2024"]
[]
[]
[]
[]
[]
["Plätze U3",null,null,{"$f":"SUMIF(C6:C76,\"Krippengruppe\",D6:D76)+SUMIF(C6:C76,\"altersgemischte Gruppe\",D6:D76)+SUMIF(C6:C76,\"kleine *\",D6:D76)","v":60}]
["Plätze Ü3",null,null,null,{"$f":"SUMIF(C6:C76, \"Kindergartengruppe*\", E6:E76) + SUMIF(C6:C76, \"altersgemischte Gruppe\", E6:E76) + SUMIF(C6:C76, \"Natur-Kindergartengruppe\", E6:E76) + SUMIF(C6:C76, \"mittlere Kindergartengruppe*\", E6:E76) +   SUMIF(C6:C76, \"integrative Kindergartengruppe\", E6:E76) + SUMIF(C6:C76, \"kleine Kinderg*\", E6:E76)","v":549},{"$f":"SUM(F6:F76)","v":105}]
["Plätze gesamt",null,null,null,null,{"$f":"SUM(D77:F78)","v":714}]
[null,null,null,null,"Kindertagespflege"]
["Plätze U3",null,null,120]
["Plätze Ü3"]
["Plätze gesamt",null,null,null,null,{"$f":"SUM(D81:F82)","v":120}]
[null,null,null,null,"Plätze gesamt"]
["Plätze U3",null,null,{"$f":"SUM(D77+D81)","v":180}]
["Plätze Ü3",null,null,null,{"$f":"SUM(E78+E82)","v":549},{"$f":"SUM(F78+F82)","v":105}]
["Plätze gesamt",null,null,null,null,{"$f":"SUM(D85:F86)","v":834}]

{"sheet":"Planungsraum 3","index":3,"n_rows":102,"n_cols":11,"rows_kept":102,"cut":false,"hidden":false,"merged":[[3,8,4,8],[3,10,4,10],[3,0,4,0],[3,1,4,1],[3,2,4,2],[3,3,3,5],[3,6,4,6],[3,7,4,7]]}
[null,null,"KiTa-Bedarfsplan",null,null,null,"Kreis Plön","Planungsraum 3","Stadt Schwentinental"]
[]
[null,null,null,null,"Abschnitt 1",null,null,null,null,"Abschnitt 2"]
["Nr.","Ortsteil","Gruppenart","Gruppengröße",null,null,"Öffnungszeiten/Woche","Sonstige Festlegungen","Kitaname\n","Träger","Förderzeitraum"]
[null,null,null,"U3","Ü3","Hort"]
[1,"Stadt Schwentinental","Kindergartengruppe",null,20,null,30,null,"DRK Kinderhaus Schwentinental","DRK Kreisverband Ostholstein\n","01.01.2021-31.12.2024"]
[2,"Stadt Schwentinental","Erg. u. Rz. Krippengruppe",10,null,null,5,null,"DRK Kinderhaus Schwentinental","DRK Kreisverband Ostholstein\n","01.01.2021-31.12.2024"]
[3,"Stadt Schwentinental","Erg. u. Rz. Kindergartengruppe",null,20,null,6.5,null,"DRK Kinderhaus Schwentinental","DRK Kreisverband Ostholstein\n","01.01.2021-31.12.2024"]
[4,"Stadt Schwentinental","Erg. u. Rz. kleine Kindergartengruppe (10)",null,10,null,2.5,null,"DRK Kinderhaus Schwentinental","DRK Kreisverband Ostholstein\n","01.01.2021-31.12.2024"]
[5,"Stadt Schwentinental","Erg. u. Rz. Krippengruppe",10,null,null,6.5,null,"DRK Kinderhaus Schwentinental","DRK Kreisverband Ostholstein\n","01.01.2021-31.12.2024"]
[6,"Stadt Schwentinental","Erg. u. Rz. mittlere Kindergartengruppe (15)",null,15,null,5,null,"DRK Kinderhaus Schwentinental","DRK Kreisverband Ostholstein\n","01.01.2021-31.12.2024"]
[7,"Stadt Schwentinental","Erg. u. Rz. kleine Kindergartengruppe (10)",null,10,null,5,null,"DRK Kinderhaus Schwentinental","DRK Kreisverband Ostholstein\n","01.01.2021-31.12.2024"]
[8,"Stadt Schwentinental","Erg. u. Rz. kleine Krippengruppe (5)",5,null,null,10,null,"DRK Kinderhaus Schwentinental","DRK Kreisverband Ostholstein\n","01.01.2021-31.12.2024"]
[9,"Stadt Schwentinental","Erg. u. Rz. Kindergartengruppe",null,20,null,10,null,"DRK Kinderhaus Schwentinental","DRK Kreisverband Ostholstein\n","01.01.2021-31.12.2024"]
[10,"Stadt Schwentinental","Erg. u. Rz. kleine Kindergartengruppe (10)",null,10,null,10,null,"DRK Kinderhaus Schwentinental","DRK Kreisverband Ostholstein\n","01.01.2021-31.12.2024"]
[11,"Stadt Schwentinental","Kindergartengruppe",null,20,null,30,null,"DRK Kinderhaus Schwentinental","DRK Kreisverband Ostholstein\n","01.01.2021-31.12.2024"]
[12,"Stadt Schwentinental","Krippengruppe",10,null,null,30,null,"DRK Kinderhaus Schwentinental","DRK Kreisverband Ostholstein\n","01.01.2021-31.12.2024"]
[13,"Stadt Schwentinental","Krippengruppe",10,null,null,30,null,"DRK Kinderhaus Schwentinental","DRK Kreisverband Ostholstein\n","01.01.2021-31.12.2024"]
[14,"Stadt Schwentinental","Krippengruppe",10,null,null,30,null,"DRK Kinderhaus Schwentinental","DRK Kreisverband Ostholstein\n","01.01.2021-31.12.2024"]
[15,"Stadt Schwentinental","Kindergartengruppe",null,20,null,30,null,"DRK Kinderhaus Schwentinental","DRK Kreisverband Ostholstein\n","01.01.2021-31.12.2024"]
[16,"Stadt Schwentinental","Kindergartengruppe",null,20,null,30,null,"DRK Kinderhaus Schwentinental","DRK Kreisverband Ostholstein\n","01.01.2021-31.12.2024"]
[17,"Stadt Schwentinental","Erg. u. Rz. kleine Kindergartengruppe (10)",null,10,null,10,null,"DRK Kita \"Pippi-Lotta\"","DRK OV Klausdorf e.V.","01.01.2021-31.12.2024"]
[18,"Stadt Schwentinental","Erg. u. Rz. mittlere  Kindergartengruppe",null,15,null,15,null,"DRK Kita \"Pippi-Lotta\"","DRK OV Klausdorf e.V.","01.01.2021-31.12.2024"]
[19,"Stadt Schwentinental","Kindergartengruppe",null,20,null,35,null,"DRK Kita \"Pippi-Lotta\"","DRK OV Klausdorf e.V.","01.01.2021-31.12.2024"]
[20,"Stadt Schwentinental","Kindergartengruppe",null,20,null,30,null,"DRK Kita \"Pippi-Lotta\"","DRK OV Klausdorf e.V.","01.01.2021-31.12.2024"]
[21,"Stadt Schwentinental","Natur-Kindergartengruppe",null,16,null,45,null,"DRK Kita \"Pippi-Lotta\"","DRK OV Klausdorf e.V.","01.01.2021-31.12.2024"]
[22,"Stadt Schwentinental","Kindergartengruppe",null,20,null,35,null,"DRK Kita \"Schulstraße\"","DRK OV Klausdorf e.V.","01.01.2021-31.12.2024"]
[23,"Stadt Schwentinental","Erg. u. Rz. Krippengruppe",10,null,null,10,null,"DRK Kita \"Schulstraße\"","DRK OV Klausdorf e.V.","01.01.2021-31.12.2024"]
[24,"Stadt Schwentinental","Erg. u. Rz mittlere Kindergartengruppe",null,15,null,10,null,"DRK Kita \"Schulstraße\"","DRK OV Klausdorf e.V.","01.01.2021-31.12.2024"]
[25,"Stadt Schwentinental","Erg. u. Rz. Kindergartengruppe",null,20,null,10,null,"DRK Kita \"Schulstraße\"","DRK OV Klausdorf e.V.","01.01.2021-31.12.2024"]
[26,"Stadt Schwentinental","Kindergartengruppe",null,16,null,35,null,"DRK Kita \"Schulstraße\"","DRK OV Klausdorf e.V.","01.01.2021-31.12.2024"]
[27,"Stadt Schwentinental","Krippengruppe",null,10,null,35,null,"DRK Kita \"Schulstraße\"","DRK OV Klausdorf e.V.","01.01.2021-31.12.2024"]
[28,"Stadt Schwentinental","Kindergartengruppe",null,20,null,35,null,"DRK Kita \"Schulstraße\"","DRK OV Klausdorf e.V.","01.01.2021-31.12.2024"]
[29,"Stadt Schwentinental","altersgemischte Gruppe",5,10,null,35,null,"DRK Kita \"Schulstraße\"","DRK OV Klausdorf e.V.","01.01.2021-31.12.2024"]
[30,"Stadt Schwentinental","Natur-Kindergartengruppe",null,16,null,30,null,"DRK Kita Dorfstraße Schwentinental","DRK Kreisverband Ostholstein\n","01.01.2021-31.12.2024"]
[31,"Stadt Schwentinental","Erg. u. Rz. kleine Kindergartengruppe (10)",null,10,null,10,null,"DRK Kita Dorfstraße Schwentinental","DRK Kreisverband Ostholstein\n","01.01.2021-31.12.2024"]
[32,"Stadt Schwentinental","Erg. u. Rz. Kindergartengruppe",null,20,null,5,null,"DRK Kita Dorfstraße Schwentinental","DRK Kreisverband Ostholstein\n","01.01.2021-31.12.2024"]
[33,"Stadt Schwentinental","Erg. u. Rz. Krippengruppe",10,null,null,6.5,null,"DRK Kita Dorfstraße Schwentinental","DRK Kreisverband Ostholstein\n","01.01.2021-31.12.2024"]
[34,"Stadt Schwentinental","Erg. u. Rz. Kindergartengruppe",null,20,null,6.5,null,"DRK Kita Dorfstraße Schwentinental","DRK Kreisverband Ostholstein\n","01.01.2021-31.12.2024"]
[35,"Stadt Schwentinental","Erg. u. Rz. Kindergartengruppe",null,20,null,5,null,"DRK Kita Dorfstraße Schwentinental","DRK Kreisverband Ostholstein\n","01.01.2021-31.12.2024"]
[36,"Stadt Schwentinental","Erg. u. Rz. Krippengruppe",10,null,null,5,null,"DRK Kita Dorfstraße Schwentinental","DRK Kreisverband Ostholstein\n","01.01.2021-31.12.2024"]
[37,"Stadt Schwentinental","Erg. u. Rz. Krippengruppe",5,null,null,5,null,"DRK Kita Dorfstraße Schwentinental","DRK Kreisverband Ostholstein\n","01.01.2021-31.12.2024"]
[38,"Stadt Schwentinental","Erg. u. Rz. Kindergartengruppe",null,20,null,10,null,"DRK Kita Dorfstraße Schwentinental","DRK Kreisverband Ostholstein\n","01.01.2021-31.12.2024"]
[39,"Stadt Schwentinental","Kindergartengruppe",null,20,null,30,null,"DRK Kita Dorfstraße Schwentinental","DRK Kreisverband Ostholstein\n","01.01.2021-31.12.2024"]
[40,"Stadt Schwentinental","altersgemischte Gruppe",5,10,null,30,null,"DRK Kita Dorfstraße Schwentinental","DRK Kreisverband Ostholstein\n","01.01.2021-31.12.2024"]
[41,"Stadt Schwentinental","Krippengruppe",10,null,null,30,null,"DRK Kita Dorfstraße Schwentinental","DRK Kreisverband Ostholstein\n","01.01.2021-31.12.2024"]
[42,"Stadt Schwentinental","Kindergartengruppe",null,20,null,30,null,"DRK Kita Dorfstraße Schwentinental","DRK Kreisverband Ostholstein\n","01.01.2021-31.12.2024"]
[43,"Stadt Schwentinental","Kindergartengruppe",null,20,null,30,null,"DRK Kita Dorfstraße Schwentinental","DRK Kreisverband Ostholstein\n","01.01.2021-31.12.2024"]
[44,"Stadt Schwentinental","Kindergartengruppe",null,20,null,30,null,"DRK Kita Pavillon Schwentinental","DRK Kreisverband Ostholstein\n","01.01.2021-31.12.2024"]
[45,"Stadt Schwentinental","Erg. u. Rz. mittlere Kindergartengruppe (15)",null,15,null,6.5,null,"DRK Kita Pavillon Schwentinental","DRK Kreisverband Ostholstein\n","01.01.2021-31.12.2024"]
[46,"Stadt Schwentinental","Erg. u. Rz. kleine Kindergartengruppe (10)",null,10,null,6.5,null,"DRK Kita Pavillon Schwentinental","DRK Kreisverband Ostholstein\n","01.01.2021-31.12.2024"]
[47,"Stadt Schwentinental","Erg. u. Rz. Krippengruppe",10,null,null,5,null,"DRK Kita Pavillon Schwentinental","DRK Kreisverband Ostholstein\n","01.01.2021-31.12.2024"]
[48,"Stadt Schwentinental","Erg. u. Rz. Kleine Krippengruppe",5,null,null,10,null,"DRK Kita Pavillon Schwentinental","DRK Kreisverband Ostholstein\n","01.01.2021-31.12.2024"]
[49,"Stadt Schwentinental","Erg. u. Rz. Kindergartengruppe (15)",null,15,null,10,null,"DRK Kita Pavillon Schwentinental","DRK Kreisverband Ostholstein\n","01.01.2021-31.12.2024"]
[50,"Stadt Schwentinental","Erg. u. Rz.  Kindergartengruppe (15)",null,15,null,10,null,"DRK Kita Pavillon Schwentinental","DRK Kreisverband Ostholstein\n","01.01.2021-31.12.2024"]
[51,"Stadt Schwentinental","Erg. u. Rz. Krippengruppe",10,null,null,10,null,"DRK Kita Pavillon Schwentinental","DRK Kreisverband Ostholstein\n","01.01.2021-31.12.2024"]
[52,"Stadt Schwentinental","Krippengruppe",10,null,null,30,null,"DRK Kita Pavillon Schwentinental","DRK Kreisverband Ostholstein\n","01.01.2021-31.12.2024"]
[54,"Stadt Schwentinental","Krippengruppe",10,null,null,30,null,"DRK Kita Pavillon Schwentinental","DRK Kreisverband Ostholstein\n","01.01.2021-31.12.2024"]
[55,"Stadt Schwentinental","Krippengruppe",10,null,null,30,null,"DRK Kita Pavillon Schwentinental","DRK Kreisverband Ostholstein\n","01.01.2021-31.12.2024"]
[56,"Stadt Schwentinental","Kindergartengruppe",null,20,null,30,null,"DRK Kita Pavillon Schwentinental","DRK Kreisverband Ostholstein\n","01.01.2021-31.12.2024"]
[57,"Stadt Schwentinental","Kindergartengruppe",null,20,null,35,null,"DRK Kita Pavillon Schwentinental","DRK Kreisverband Ostholstein\n","01.01.2021-31.12.2024"]
[58,"Stadt Schwentinental","Erg. u. Rz. altersgemischte Gruppe",5,10,null,5,null,"Ev.-Luth. KiTa \"Arche Noah am Park\"","Ev.-Luth. Kirchenkreis Plön-Segeberg (PLÖ)","01.01.2021-31.12.2024"]
[59,"Stadt Schwentinental","Erg. u. Rz. Krippengruppe",10,null,null,5,null,"Ev.-Luth. KiTa \"Arche Noah am Park\"","Ev.-Luth. Kirchenkreis Plön-Segeberg (PLÖ)","01.01.2021-31.12.2024"]
[60,"Stadt Schwentinental","Erg. u. Rz. altersgemischte Gruppe",5,10,null,5,null,"Ev.-Luth. KiTa \"Arche Noah am Park\"","Ev.-Luth. Kirchenkreis Plön-Segeberg (PLÖ)","01.01.2021-31.12.2024"]
[61,"Stadt Schwentinental","Erg. u. Rz. Krippengruppe",10,null,null,5,null,"Ev.-Luth. KiTa \"Arche Noah am Park\"","Ev.-Luth. Kirchenkreis Plön-Segeberg (PLÖ)","01.01.2021-31.12.2024"]
[62,"Stadt Schwentinental","Erg.- u. Rz.-Gr.: Spätdienst",5,10,null,5,null,"Ev.-Luth. KiTa \"Arche Noah am Park\"","Ev.-Luth. Kirchenkreis Plön-Segeberg (PLÖ)","01.01.2021-31.12.2024"]
[63,"Stadt Schwentinental","Krippengruppe",10,null,null,30,null,"Ev.-Luth. KiTa \"Arche Noah am Park\"","Ev.-Luth. Kirchenkreis Plön-Segeberg (PLÖ)","01.01.2021-31.12.2024"]
[64,"Stadt Schwentinental","altersgemischte Gruppe",5,10,null,30,null,"Ev.-Luth. KiTa \"Arche Noah am Park\"","Ev.-Luth. Kirchenkreis Plön-Segeberg (PLÖ)","01.01.2021-31.12.2024"]
[65,"Stadt Schwentinental","altersgemischte Gruppe",5,10,null,30,null,"Ev.-Luth. KiTa \"Arche Noah am Park\"","Ev.-Luth. Kirchenkreis Plön-Segeberg (PLÖ)","01.01.2021-31.12.2024"]
[66,"Stadt Schwentinental","Krippengruppe",10,null,null,30,null,"Ev.-Luth. KiTa \"Arche Noah am Park\"","Ev.-Luth. Kirchenkreis Plön-Segeberg (PLÖ)","01.01.2021-31.12.2024"]
[67,"Stadt Schwentinental","Kindergartengruppe",null,20,null,30,null,"Ev.-Luth. KiTa \"Arche Noah an der Schwentine\"","Ev.-Luth. Kirchenkreis Plön-Segeberg (PLÖ)","01.01.2021-31.12.2024"]
[68,"Stadt Schwentinental","Natur-Kindergartengruppe",null,16,null,35,null,"Ev.-Luth. KiTa \"Arche Noah an der Schwentine\"","Ev.-Luth. Kirchenkreis Plön-Segeberg (PLÖ)","01.01.2021-31.12.2024"]
[69,"Stadt Schwentinental","Erg. u. Rz. Kindergartengruppe",null,20,null,5,null,"Ev.-Luth. KiTa \"Arche Noah an der Schwentine\"","Ev.-Luth. Kirchenkreis Plön-Segeberg (PLÖ)","01.01.2021-31.12.2024"]
[70,"Stadt Schwentinental","Erg. u. Rz. Natur-Kindergartengruppe",null,16,null,5,null,"Ev.-Luth. KiTa \"Arche Noah an der Schwentine\"","Ev.-Luth. Kirchenkreis Plön-Segeberg (PLÖ)","01.01.2021-31.12.2024"]
[71,"Stadt Schwentinental","Erg. u. Rz. mittlere Kindergartengruppe (15)",null,15,null,5,null,"Ev.-Luth. KiTa \"Arche Noah an der Schwentine\"","Ev.-Luth. Kirchenkreis Plön-Segeberg (PLÖ)","01.01.2021-31.12.2024"]
[72,"Stadt Schwentinental","Erg. u. Rz. Kindergartengruppe",null,20,null,5,null,"Ev.-Luth. KiTa \"Arche Noah an der Schwentine\"","Ev.-Luth. Kirchenkreis Plön-Segeberg (PLÖ)","01.01.2021-31.12.2024"]
[73,"Stadt Schwentinental","Erg. u. Rz. kleine Kindergartengruppe (10)",null,10,null,5,null,"Ev.-Luth. KiTa \"Arche Noah an der Schwentine\"","Ev.-Luth. Kirchenkreis Plön-Segeberg (PLÖ)","01.01.2021-31.12.2024"]
[74,"Stadt Schwentinental","Erg. u. Rz. Kindergartengruppe",null,20,null,5,null,"Ev.-Luth. KiTa \"Arche Noah an der Schwentine\"","Ev.-Luth. Kirchenkreis Plön-Segeberg (PLÖ)","01.01.2021-31.12.2024"]
[75,"Stadt Schwentinental","Natur-Kindergartengruppe",null,16,null,30,null,"Ev.-Luth. KiTa \"Arche Noah an der Schwentine\"","Ev.-Luth. Kirchenkreis Plön-Segeberg (PLÖ)","01.01.2021-31.12.2024"]
[76,"Stadt Schwentinental","integrative Kindergartengruppe",null,12,null,30,null,"Ev.-Luth. KiTa \"Arche Noah an der Schwentine\"","Ev.-Luth. Kirchenkreis Plön-Segeberg (PLÖ)","01.01.2021-31.12.2024"]
[77,"Stadt Schwentinental","Kindergartengruppe",null,20,null,30,null,"Ev.-Luth. KiTa \"Arche Noah an der Schwentine\"","Ev.-Luth. Kirchenkreis Plön-Segeberg (PLÖ)","01.01.2021-31.12.2024"]
[78,"Stadt Schwentinental","Kindergartengruppe",null,20,null,30,null,"Ev.-Luth. KiTa \"Arche Noah an der Schwentine\"","Ev.-Luth. Kirchenkreis Plön-Segeberg (PLÖ)","01.01.2021-31.12.2024"]
[79,"Stadt Schwentinental","Kindergartengruppe",null,20,null,40,null,"Evangelische Kindertagesstätte Klausdorf","Ev.-Luth. Philippus-Kichengemeinde Klausdorf","01.01.2021-31.12.2024"]
[80,"Stadt Schwentinental","Erg. u. Rz. kleine altersgemischte Gruppe",3,4,null,5,null,"Evangelische Kindertagesstätte Klausdorf","Ev.-Luth. Philippus-Kichengemeinde Klausdorf","01.01.2021-31.12.2024"]
[81,"Stadt Schwentinental","Erg. u. Rz. kleine altersgemischte Gruppe",5,10,null,10,null,"Evangelische Kindertagesstätte Klausdorf","Ev.-Luth. Philippus-Kichengemeinde Klausdorf","01.01.2021-31.12.2024"]
[82,"Stadt Schwentinental","altersgemischte Gruppe",5,10,null,30,null,"Evangelische Kindertagesstätte Klausdorf","Ev.-Luth. Philippus-Kichengemeinde Klausdorf","01.01.2021-31.12.2024"]
[null,"Stadt Schwentinental","Krippengruppe",10,null,null,30,null,"Evangelische Kindertagesstätte Klausdorf","Ev.-Luth. Philippus-Kichengemeinde Klausdorf","01.01.2021-31.12.2024"]
[null,"Stadt Schwentinental","Erg. u. Rz. mittlere Kindergartengruppe (15)",null,10,null,5,null,"Evangelische Kindertagesstätte Klausdorf","Ev.-Luth. Philippus-Kichengemeinde Klausdorf","01.01.2021-31.12.2024"]
[null,"Stadt Schwentinental","Erg. u. Rz. mittlere Kindergartengruppe (15)",null,10,null,10,null,"Evangelische Kindertagesstätte Klausdorf","Ev.-Luth. Philippus-Kichengemeinde Klausdorf","01.01.2021-31.12.2024"]
[]
[]
["Plätze U3",null,null,{"$f":"SUMIF(C6:C91,\"Krippengruppe\",D6:D91)+SUMIF(C6:C91,\"altersgemischte Gruppe\",D6:D91)+SUMIF(C6:C91,\"kleine *\",D6:D91)","v":125}]
["Plätze Ü3",null,null,null,{"$f":"SUMIF(C6:C91, \"Kindergartengruppe*\", E6:E91) + SUMIF(C6:C91, \"altersgemischte Gruppe\", E6:E91) + SUMIF(C6:C91, \"Natur-Kindergartengruppe\", E6:E91) + SUMIF(C6:C91, \"mittlere Kindergartengruppe*\", E6:E91) +   SUMIF(C6:C91, \"integrative Kindergartengruppe\", E6:E91) + SUMIF(C6:C91, \"kleine Kinderg*\", E6:E91)","v":502},{"$f":"SUMIF(C16:C91, \"Kindergartengruppe\", F16:F91) + SUMIF(C16:C91, \"mittlere Kindergartengruppe (15)\", F16:F91) + SUMIF(C16:C91, \"kleine Kindergartengruppe (10)\", F16:F91)","v":0}]
["Plätze gesamt",null,null,null,null,{"$f":"SUM(D92:F93)","v":627}]
[null,null,null,null,"Kindertagespflege"]
["Plätze U3",null,null,65]
["Plätze Ü3"]
["Plätze gesamt",null,null,null,null,{"$f":"SUM(D96:F97)","v":65}]
[null,null,null,null,"Plätze gesamt"]
["Plätze U3",null,null,{"$f":"SUM(D92+D96)","v":190}]
["Plätze Ü3",null,null,null,{"$f":"SUM(E93+E97)","v":502}]
["Plätze gesamt",null,null,null,null,{"$f":"SUM(D100:F101)","v":692}]

{"sheet":"Planungsraum 10","index":4,"n_rows":65,"n_cols":11,"rows_kept":65,"cut":false,"hidden":false,"merged":[[3,8,4,8],[3,10,4,10],[3,0,4,0],[3,1,4,1],[3,2,4,2],[3,3,3,5],[3,6,4,6],[3,7,4,7]]}
[null,null,"KiTa-Bedarfsplan",null,null,null,"Kreis Plön","Planungsraum 10","Amt Bokhorst-Wankendorf"]
[]
[null,null,null,null,"Abschnitt 1",null,null,null,null,"Abschnitt 2"]
["Nr.","Ortsteil","Gruppenart","Gruppengröße",null,null,"Öffnungszeiten/Woche","Sonstige Festlegungen","Kitaname\n","Träger","Förderzeitraum"]
[null,null,null,"U3","Ü3","Hort"]
[1,"Wankendorf","altersgemischte Gruppe",5,10,null,30,null,"DRK-Kindertagesstätte \"Kleine und Große Racker\"","DRK-Ortsverein Wankendorf e.V., c./o. DRK-Kita \"Große Racker\"","01.01.2021-31.12.2024"]
[2,"Wankendorf","Erg. u. Rz. altersgemischte Gruppe",5,10,null,5,null,"DRK-Kindertagesstätte \"Kleine und Große Racker\"","DRK-Ortsverein Wankendorf e.V., c./o. DRK-Kita \"Große Racker\"","01.01.2021-31.12.2024"]
[3,"Wankendorf","Erg. u. Rz. altersgemischte Gruppe",5,10,null,10,null,"DRK-Kindertagesstätte \"Kleine und Große Racker\"","DRK-Ortsverein Wankendorf e.V., c./o. DRK-Kita \"Große Racker\"","01.01.2021-31.12.2024"]
[4,"Wankendorf","Erg. u. Rz. kleine altersgemischte Gruppe",3,4,null,5,null,"DRK-Kindertagesstätte \"Kleine und Große Racker\"","DRK-Ortsverein Wankendorf e.V., c./o. DRK-Kita \"Große Racker\"","01.01.2021-31.12.2024"]
[5,"Wankendorf","Kindergartengruppe",null,20,null,25,null,"DRK-Kindertagesstätte \"Kleine und Große Racker\"","DRK-Ortsverein Wankendorf e.V., c./o. DRK-Kita \"Große Racker\"","01.01.2021-31.12.2024"]
[6,"Wankendorf","Erg. u. Rz. Kindergartengruppe",null,20,null,5,null,"DRK-Kindertagesstätte \"Kleine und Große Racker\"","DRK-Ortsverein Wankendorf e.V., c./o. DRK-Kita \"Große Racker\"","01.01.2021-31.12.2024"]
[7,"Wankendorf","Erg. u. Rz. Kindergartengruppe",null,20,null,15,null,"DRK-Kindertagesstätte \"Kleine und Große Racker\"","DRK-Ortsverein Wankendorf e.V., c./o. DRK-Kita \"Große Racker\"","01.01.2021-31.12.2024"]
[8,"Wankendorf","Kindergartengruppe",null,20,null,30,null,"DRK-Kindertagesstätte \"Kleine und Große Racker\"","DRK-Ortsverein Wankendorf e.V., c./o. DRK-Kita \"Große Racker\"","01.01.2021-31.12.2024"]
[9,"Wankendorf","Krippengruppe",10,null,null,30,null,"DRK-Kindertagesstätte \"Kleine und Große Racker\"","DRK-Ortsverein Wankendorf e.V., c./o. DRK-Kita \"Große Racker\"","01.01.2021-31.12.2024"]
[10,"Wankendorf","Kindergartengruppe",null,20,null,25,null,"DRK-Kindertagesstätte \"Kleine und Große Racker\"","DRK-Ortsverein Wankendorf e.V., c./o. DRK-Kita \"Große Racker\"","01.01.2021-31.12.2024"]
[11,"Wankendorf","Krippengruppe",10,null,null,30,null,"DRK-Kindertagesstätte \"Kleine und Große Racker\"","DRK-Ortsverein Wankendorf e.V., c./o. DRK-Kita \"Große Racker\"","01.01.2021-31.12.2024"]
[12,"Wankendorf","Erg. u. Rz. Krippengruppe",10,null,null,5,null,"DRK-Kindertagesstätte \"Kleine und Große Racker\"","DRK-Ortsverein Wankendorf e.V., c./o. DRK-Kita \"Große Racker\"","01.01.2021-31.12.2024"]
[13,"Wankendorf","Erg. u. Rz. Krippengruppe",10,null,null,10,null,"DRK-Kindertagesstätte \"Kleine und Große Racker\"","DRK-Ortsverein Wankendorf e.V., c./o. DRK-Kita \"Große Racker\"","01.01.2021-31.12.2024"]
[14,"Wankendorf","Erg. u. Rz. kleine Krippengruppe (5)",5,null,null,5,null,"DRK-Kindertagesstätte \"Kleine und Große Racker\"","DRK-Ortsverein Wankendorf e.V., c./o. DRK-Kita \"Große Racker\"","01.01.2021-31.12.2024"]
[15]
[16,"Stolpe","altersgemischte Gruppe",5,10,null,25,null,"DRK-Kita \"Rappelsnuut'n\", Stolpe","DRK-Kinder- und Jugendhilfe Nord gGmbH","01.01.2021-31.12.2024"]
[17,"Stolpe","Kindergartengruppe",null,20,null,25,null,"DRK-Kita \"Rappelsnuut'n\", Stolpe","DRK-Kinder- und Jugendhilfe Nord gGmbH","01.01.2021-31.12.2024"]
[18,"Stolpe","Erg. u. Rz. altersgemischte Gruppe",5,10,null,5,null,"DRK-Kita \"Rappelsnuut'n\", Stolpe","DRK-Kinder- und Jugendhilfe Nord gGmbH","01.01.2021-31.12.2024"]
[19,"Stolpe","Erg. u. Rz. altersgemischte Gruppe",5,10,null,5,null,"DRK-Kita \"Rappelsnuut'n\", Stolpe","DRK-Kinder- und Jugendhilfe Nord gGmbH","01.01.2021-31.12.2024"]
[20,"Schillsdorf","Krippengruppe",10,null,null,40,null,"Ev.-Luth. Kita K. in. der Kastanie","Ev.-Lutherischer Kirchenkreis Altholstein (PLÖ)","01.01.2021-31.12.2024"]
[21,"Schillsdorf","Erg. u. Rz. Kindergartengruppe",null,20,null,15,null,"Ev.-Luth. Kita K. in. der Kastanie","Ev.-Lutherischer Kirchenkreis Altholstein (PLÖ)","01.01.2021-31.12.2024"]
[22,"Schillsdorf","Kindergartengruppe",null,20,null,25,null,"Ev.-Luth. Kita K. in. der Kastanie","Ev.-Lutherischer Kirchenkreis Altholstein (PLÖ)","01.01.2021-31.12.2024"]
[23,"Schillsdorf","altersgemischte Gruppe",5,10,null,25,null,"Ev.-Luth. Kita K. in. der Kastanie","Ev.-Lutherischer Kirchenkreis Altholstein (PLÖ)","01.01.2021-31.12.2024"]
[24,"Schillsdorf","Erg. u. Rz. Krippengruppe",10,null,null,5,null,"Ev.-Luth. Kita K. in. der Kastanie","Ev.-Lutherischer Kirchenkreis Altholstein (PLÖ)","01.01.2021-31.12.2024"]
[25,"Schillsdorf","Erg. u. Rz. mittlere Kindergartengruppe (15)",null,15,null,5,null,"Ev.-Luth. Kita K. in. der Kastanie","Ev.-Lutherischer Kirchenkreis Altholstein (PLÖ)","01.01.2021-31.12.2024"]
[26,"Schillsdorf","altersgemischte Gruppe",5,10,null,40,null,"Ev.-Luth. Kita K. in. der Kastanie","Ev.-Lutherischer Kirchenkreis Altholstein (PLÖ)","01.01.2021-31.12.2024"]
[27,"Schillsdorf","Natur-Kindergartengruppe",null,16,null,30,null,"Ev.-Luth. Kita K. in. der Kastanie","Ev.-Lutherischer Kirchenkreis Altholstein (PLÖ)","01.01.2021-31.12.2024"]
[28,"Wankendorf","Kindergartengruppe",null,20,null,45,null,"Johanniter Kindertagesstätte Kita Kito","Johanniter-Unfall-Hilfe e.V. (PLÖ)","01.01.2021-31.12.2024"]
[29,"Wankendorf","Kindergartengruppe",null,20,null,30,null,"Johanniter Kindertagesstätte Kita Kito","Johanniter-Unfall-Hilfe e.V. (PLÖ)","01.01.2021-31.12.2024"]
[30,"Wankendorf","Erg. u. Rz. kleine Kindergartengruppe (10)",null,10,null,10,null,"Johanniter Kindertagesstätte Kita Kito","Johanniter-Unfall-Hilfe e.V. (PLÖ)","01.01.2021-31.12.2024"]
[31,"Wankendorf","Erg. u. Rz. altersgemischte Gruppe",5,10,null,5,null,"Johanniter Kindertagesstätte Kita Kito","Johanniter-Unfall-Hilfe e.V. (PLÖ)","01.01.2021-31.12.2024"]
[32,"Wankendorf","Erg. u. Rz. Krippengruppe",10,null,null,5,null,"Johanniter Kindertagesstätte Kita Kito","Johanniter-Unfall-Hilfe e.V. (PLÖ)","01.01.2021-31.12.2024"]
[33,"Wankendorf","Erg. u. Rz. kleine Kindergartengruppe (10)",null,10,null,7.5,null,"Johanniter Kindertagesstätte Kita Kito","Johanniter-Unfall-Hilfe e.V. (PLÖ)","01.01.2021-31.12.2024"]
[34,"Wankendorf","Krippengruppe",10,null,null,30,null,"Johanniter Kindertagesstätte Kita Kito","Johanniter-Unfall-Hilfe e.V. (PLÖ)","01.01.2021-31.12.2024"]
[35,"Wankendorf","Krippengruppe",10,null,null,30,null,"Johanniter Kindertagesstätte Kita Kito","Johanniter-Unfall-Hilfe e.V. (PLÖ)","01.01.2021-31.12.2024"]
[36,"Wankendorf","Erg. u. Rz. kleine Krippengruppe (5)",5,null,null,10,null,"Johanniter Kindertagesstätte Kita Kito","Johanniter-Unfall-Hilfe e.V. (PLÖ)","01.01.2021-31.12.2024"]
[37,"Wankendorf","Natur-Kindergartengruppe",null,16,null,25,null,"Johanniter Kindertagesstätte Kita Kito","Johanniter-Unfall-Hilfe e.V. (PLÖ)","01.01.2021-31.12.2024"]
[38,"Ruhwinkel","Kindergartengruppe",null,20,null,30,null,"Johanniter Kindergarten Schönböken","Kindergarten Schönböken e.V.","01.01.2021-31.12.2024"]
[39,"Ruhwinkel","Erg. u. Rz. kleine Kindergartengruppe (10)",null,10,null,2.5,null,"Johanniter Kindergarten Schönböken","Kindergarten Schönböken e.V.","01.01.2021-31.12.2024"]
[40,"Rendswühren","Natur-Kindergartengruppe",null,16,null,30,null,"Bauernhofkindergarten Hofwichtel Kita Natura Rendswühren","Kita Natura eG (PLÖ)","01.01.2021-31.12.2024"]
[41,"Stolpe","Natur-Kindergartengruppe",null,16,null,30,null,"Naturkindergarten Stolpe","Familie und Beruf e.V.","01.08.2022-31.12.2024"]
[42]
[43]
[44]
[45]
[46]
[47]
[48]
[49]
["Plätze U3",null,null,{"$f":"SUMIF(C6:C54,\"Krippengruppe\",D6:D54)+SUMIF(C6:C54,\"altersgemischte Gruppe\",D6:D54)+SUMIF(C6:C54,\"kleine Krippengruppe\",D6:D54)","v":70}]
["Plätze Ü3",null,null,null,{"$f":" SUMIF(C6:C54, \"Kindergartengruppe\", E6:E54) + SUMIF(C6:C54, \"altersgemischte Gruppe\",E6:E54) + SUMIF(C6:C54, \"Natur-Kindergartengruppe\", E6:E54) + SUMIF(C6:C54, \"mittlere Kindergartengruppe*\", E6:E54) +   SUMIF(C6:C54, \"integrative Kindergartengruppe\", E6:E54) + SUMIF(C6:C54, \"kleine Kinderg*\", E6:E54)","v":264},{"$f":"SUMIF(C10:C54, \"Kindergartengruppe\", F10:F54) + SUMIF(C10:C54, \"mittlere Kindergartengruppe (15)\", F10:F54) + SUMIF(C10:C54, \"kleine Kindergartengruppe (10)\", F10:F54)","v":0}]
["Plätze gesamt",null,null,null,null,{"$f":"SUM(D55:F56)","v":334}]
[null,null,null,null,"Kindertagespflege"]
["Plätze U3",null,null,15]
["Plätze Ü3"]
["Plätze gesamt",null,null,null,null,{"$f":"SUM(D59:F60)","v":15}]
[null,null,null,null,"Plätze gesamt"]
["Plätze U3",null,null,{"$f":"D59+D55","v":85}]
["Plätze Ü3",null,null,null,{"$f":"E60+E56","v":264},{"$f":"F60+F56","v":0}]
["Plätze gesamt",null,null,null,null,{"$f":"SUM(D63:F64)","v":349}]

{"sheet":"Planungsraum 11","index":5,"n_rows":75,"n_cols":11,"rows_kept":75,"cut":false,"hidden":false,"merged":[[3,8,4,8],[3,10,4,10],[3,0,4,0],[3,1,4,1],[3,2,4,2],[3,3,3,5],[3,6,4,6],[3,7,4,7]]}
[null,null,"KiTa-Bedarfsplan",null,null,null,"Kreis Plön","Planungsraum 11","Amt Lütjenburg"]
[]
[null,null,null,null,"Abschnitt 1",null,null,null,null,"Abschnitt 2"]
["Nr.","Ortsteil","Gruppenart","Gruppengröße",null,null,"Öffnungszeiten/Woche","Sonstige Festlegungen","Kitaname\n","Träger","Förderzeitraum"]
[null,null,null,"U3","Ü3","Hort"]
[1,"Lütjenburg","altersgemischte Gruppe",5,10,null,25,null,"Evangelischer Kindergarten Lütjenburg","Ev.-Luth. Kirchengemeinde Lütjenburg","01.01.2021-31.12.2024"]
[2,"Lütjenburg","Erg. u. Rz. Kindergartengruppe",null,20,null,5,null,"Evangelischer Kindergarten Lütjenburg","Ev.-Luth. Kirchengemeinde Lütjenburg","01.01.2021-31.12.2024"]
[3,"Lütjenburg","Erg. u. Rz. Kleine Kindergartengruppe",null,10,null,5,null,"Evangelischer Kindergarten Lütjenburg","Ev.-Luth. Kirchengemeinde Lütjenburg","01.01.2021-31.12.2024"]
[4,"Lütjenburg","Erg. u. Rz. Kleine Kindergartengruppe",null,10,null,10,null,"Evangelischer Kindergarten Lütjenburg","Ev.-Luth. Kirchengemeinde Lütjenburg","01.01.2021-31.12.2024"]
[5,"Lütjenburg","Erg. u. Rz. Krippengruppe",10,null,null,20,null,"Evangelischer Kindergarten Lütjenburg","Ev.-Luth. Kirchengemeinde Lütjenburg","01.01.2021-31.12.2024"]
[6,"Lütjenburg","Erg. u. Rz. Kleine Kindergartengruppe",null,10,null,5,null,"Evangelischer Kindergarten Lütjenburg","Ev.-Luth. Kirchengemeinde Lütjenburg","01.01.2021-31.12.2024"]
[7,"Lütjenburg","Erg. u. Rz. Kindergartengruppe",null,20,null,10,null,"Evangelischer Kindergarten Lütjenburg","Ev.-Luth. Kirchengemeinde Lütjenburg","01.01.2021-31.12.2024"]
[8,"Lütjenburg","Erg. u. Rz. kleine Krippengruppe (5)",5,null,null,5,null,"Evangelischer Kindergarten Lütjenburg","Ev.-Luth. Kirchengemeinde Lütjenburg","01.01.2021-31.12.2024"]
[9,"Lütjenburg","Erg. u. Rz. Kleine Kindergartengruppe",null,10,null,10,null,"Evangelischer Kindergarten Lütjenburg","Ev.-Luth. Kirchengemeinde Lütjenburg","01.01.2021-31.12.2024"]
[10,"Lütjenburg","Natur-Kindergartengruppe",null,16,null,25,null,"Evangelischer Kindergarten Lütjenburg","Ev.-Luth. Kirchengemeinde Lütjenburg","01.01.2021-31.12.2024"]
[11,"Lütjenburg","Krippengruppe",10,null,null,25,null,"Evangelischer Kindergarten Lütjenburg","Ev.-Luth. Kirchengemeinde Lütjenburg","01.01.2021-31.12.2024"]
[12,"Lütjenburg","Kindergartengruppe",null,20,null,25,null,"Evangelischer Kindergarten Lütjenburg","Ev.-Luth. Kirchengemeinde Lütjenburg","01.01.2021-31.12.2024"]
[13,"Lütjenburg","Kindergartengruppe",null,20,null,25,null,"Evangelischer Kindergarten Lütjenburg","Ev.-Luth. Kirchengemeinde Lütjenburg","01.01.2021-31.12.2024"]
[14,"Schwartbuck","Kindergartengruppe",null,20,null,25,null,"Kindergarten Bärenhöhle Schwartbuck","Gemeinde Schwartbuck","01.01.2021-31.12.2024"]
[15,"Schwartbuck","Erg. u. Rz. mittlere Kindergartengruppe (15)",null,15,null,5,null,"Kindergarten Bärenhöhle Schwartbuck","Gemeinde Schwartbuck","01.01.2021-31.12.2024"]
[16,"Schwartbuck","Erg. u. Rz. mittlere Kindergartengruppe (15)",null,15,null,10,null,"Kindergarten Bärenhöhle Schwartbuck","Gemeinde Schwartbuck","01.01.2021-31.12.2024"]
[17,"Blekendorf","altersgemischte Gruppe",5,10,null,25,null,"Kindergarten Blekendorf","Gemeinde Blekendorf","01.01.2021-31.12.2024"]
[18,"Blekendorf","altersgemischte Gruppe",5,10,null,25,null,"Kindergarten Blekendorf","Gemeinde Blekendorf","01.01.2021-31.12.2024"]
[19,"Blekendorf","Erg. u. Rz. altersgemischte Gruppe",5,10,null,15,null,"Kindergarten Blekendorf","Gemeinde Blekendorf","01.01.2021-31.12.2024"]
[20,"Blekendorf","Kindergartengruppe",null,20,null,25,null,"Kindergarten Blekendorf","Gemeinde Blekendorf","01.01.2021-31.12.2024"]
[21,"Hohenfelde","Kindergartengruppe",null,20,null,25,null,"Kindergarten Löwenzahn Hohenfelde","Gemeinde Hohenfelde","01.01.2021-31.12.2024"]
[22,"Hohenfelde","Erg. u. Rz. mittlere Kindergartengruppe (15)",null,15,null,15,null,"Kindergarten Löwenzahn Hohenfelde","Gemeinde Hohenfelde","01.01.2021-31.12.2024"]
[23,"Panker","Kindergartengruppe",null,20,null,25,null,"Kindergarten Panda Panker","Gemeinde Panker","01.01.2021-31.12.2024"]
[24,"Panker","Erg. u. Rz. Kleine altersgemischte Gruppe",3,4,null,5,null,"Kindergarten Panda Panker","Gemeinde Panker","01.01.2021-31.12.2024"]
[25,"Panker","Erg. u. Rz. Kleine altersgemischte Gruppe",3,4,null,5,null,"Kindergarten Panda Panker","Gemeinde Panker","01.01.2021-31.12.2024"]
[26,"Panker","altersgemischte Gruppe",5,10,null,25,null,"Kindergarten Panda Panker","Gemeinde Panker","01.01.2021-31.12.2024"]
[27,"Lütjenburg","Kindergartengruppe",null,20,null,25,null,"Kindergarten Schatzkiste Lütjenburg","Stadt Lütjenburg","01.01.2021-31.12.2024"]
[28,"Lütjenburg","Erg. u. Rz. altersgemischte Gruppe",5,10,null,25,null,"Kindergarten Schatzkiste Lütjenburg","Stadt Lütjenburg","01.01.2021-31.12.2024"]
[29,"Lütjenburg","integrative Kindergartengruppe",null,15,null,30,null,"Kindergarten Schatzkiste Lütjenburg","Stadt Lütjenburg","01.01.2021-31.12.2024"]
[30,"Lütjenburg","altersgemischte Gruppe",5,10,null,25,null,"Kindergarten Schatzkiste Lütjenburg","Stadt Lütjenburg","01.01.2021-31.12.2024"]
[31,"Giekau","Erg. u. Rz. altersgemischte Gruppe",5,10,null,12.5,null,"Kindergarten Seekrug Giekau","Gemeinde Giekau","01.01.2021-31.12.2024"]
[32,"Giekau","Erg. u. Rz. kleine Kindergartengruppe (10)",null,10,null,12.5,null,"Kindergarten Seekrug Giekau","Gemeinde Giekau","01.01.2021-31.12.2024"]
[33,"Giekau","Natur-Kindergartengruppe",null,16,null,25,null,"Kindergarten Seekrug Giekau","Gemeinde Giekau","01.01.2021-31.12.2024"]
[34,"Giekau","altersgemischte Gruppe",5,10,null,25,null,"Kindergarten Seekrug Giekau","Gemeinde Giekau","01.01.2021-31.12.2024"]
[35,"Giekau","Kindergartengruppe",null,20,null,25,null,"Kindergarten Seekrug Giekau","Gemeinde Giekau","01.01.2021-31.12.2024"]
[36,"Dannau","Erg. u. Rz. altersgemischte Gruppe",5,10,null,7.5,null,"Kindergarten Spatzennest Dannau","Zweckverband Kindergarten Dannau-Rantzau","01.01.2021-31.12.2024"]
[37,"Dannau","Krippengruppe",10,null,null,25,null,"Kindergarten Spatzennest Dannau","Zweckverband Kindergarten Dannau-Rantzau","01.01.2021-31.12.2024"]
[38,"Dannau","Kindergartengruppe",0,20,null,25,null,"Kindergarten Spatzennest Dannau","Zweckverband Kindergarten Dannau-Rantzau","01.01.2021-31.12.2024"]
[39,"Dannau","altersgemischte Gruppe",5,10,null,25,"Nachmittagsgruppe","Kindergarten Spatzennest Dannau","Zweckverband Kindergarten Dannau-Rantzau","01.01.2021-31.12.2024"]
[40,"Lütjenburg","Krippengruppe",10,null,null,20,null,"Kita im SOS-Kinderdorf SH","SOS-Kinderdorf Schleswig-Holstein","01.01.2021-31.12.2024"]
[41,"Lütjenburg","Erg. u. Rz. Krippengruppe",10,null,null,20,null,"Kita im SOS-Kinderdorf SH","SOS-Kinderdorf Schleswig-Holstein","01.01.2021-31.12.2024"]
[42,"Lütjenburg","Erg. u. Rz. kleine Krippengruppe (5)",5,null,null,5,null,"Kita im SOS-Kinderdorf SH","SOS-Kinderdorf Schleswig-Holstein","01.01.2021-31.12.2024"]
[43,"Lütjenburg","Erg. u. Rz. altersgemischte Gruppe",5,10,null,20,null,"Kita im SOS-Kinderdorf SH","SOS-Kinderdorf Schleswig-Holstein","01.01.2021-31.12.2024"]
[44,"Lütjenburg","Kindergartengruppe",null,20,null,20,null,"Kita im SOS-Kinderdorf SH","SOS-Kinderdorf Schleswig-Holstein","01.01.2021-31.12.2024"]
[45,"Lütjenburg","altersgemischte Gruppe",5,10,null,20,null,"Kita im SOS-Kinderdorf SH","SOS-Kinderdorf Schleswig-Holstein","01.01.2021-31.12.2024"]
[46,"Behrensdorf","altersgemischte Gruppe",5,10,null,20,null,"Villa Kunterbunt Behrensdorf","Gemeinde Behrensdorf","01.01.2021-31.12.2024"]
[47,"Behrensdorf","kleine Krippengruppe (5)",5,null,null,20,null,"Villa Kunterbunt Behrensdorf","Gemeinde Behrensdorf","01.01.2021-31.12.2024"]
[48,"Behrensdorf","Erg. u. Rz. altersgemischte Gruppe",5,10,null,2.5,null,"Villa Kunterbunt Behrensdorf","Gemeinde Behrensdorf","01.01.2021-31.12.2024"]
[49,"Behrensdorf","Erg. u. Rz. altersgemischte Gruppe",5,10,null,20,null,"Villa Kunterbunt Behrensdorf","Gemeinde Behrensdorf","01.01.2021-31.12.2024"]
[50,"Lütjenburg","Natur-Kindergartengruppe",null,16,null,37.5,null,"Zwergenland Nienthal","Elterninitiative \"Zwergenland e.V.\" NaturErlebniskindergarten","01.01.2021-31.12.2024"]
[51]
[52]
[53]
[54]
[55]
[56]
[57]
[58]
[59]
["Plätze U3",null,null,{"$f":"SUMIF(C6:C64, \"Krippengruppe\", D6:D64) + SUMIF(C6:C64, \"altersgemischte Gruppe\", D6:D64) + SUMIF(C6:C64, \"kleine*\", D6:D64)","v":80}]
["Plätze Ü3",null,null,null,{"$f":" SUMIF(C6:C64, \"Kindergartengruppe\", E6:E64) + SUMIF(C6:C64, \"altersgemischte Gruppe\",E6:E64) + SUMIF(C6:C64, \"Natur-Kindergartengruppe\", E6:E64) + SUMIF(C6:C64, \"mittlere Kindergartengruppe*\", E6:E64) +   SUMIF(C6:C64, \"integrative Kindergartengruppe\", E6:E64) + SUMIF(C6:C64, \"kleine Kinderg*\", E6:E64)","v":353},{"$f":"SUMIF(C17:C64, \"Kindergartengruppe\", F17:F64) + SUMIF(C17:C64, \"mittlere Kindergartengruppe (15)\", F17:F64) + SUMIF(C17:C64, \"kleine Kindergartengruppe (10)\", F17:F64)","v":0}]
["Plätze gesamt",null,null,null,null,{"$f":"SUM(D65:F66)","v":433}]
[null,null,null,null,"Kindertagespflege"]
["Plätze U3",null,null,40]
["Plätze Ü3",null,null,null,0,0]
["Plätze gesamt",null,null,null,null,{"$f":"SUM(D69:F70)","v":40}]
[null,null,null,null,"Plätze gesamt"]
["Plätze U3",null,null,{"$f":"D69+D65","v":120}]
["Plätze Ü3",null,null,null,{"$f":"E70+E66","v":353},{"$f":"F70+F66","v":0}]
["Plätze gesamt",null,null,null,null,{"$f":"SUM(D73:F74)","v":473}]

{"sheet":"Planungsraum 12","index":6,"n_rows":45,"n_cols":11,"rows_kept":45,"cut":false,"hidden":false,"merged":[[3,8,4,8],[3,10,4,10],[3,0,4,0],[3,1,4,1],[3,2,4,2],[3,3,3,5],[3,6,4,6],[3,7,4,7]]}
[null,null,"KiTa-Bedarfsplan",null,null,null,"Kreis Plön","Planungsraum 12","Amt Großer Plöner See"]
[]
[null,null,null,null,"Abschnitt 1",null,null,null,null,"Abschnitt 2"]
["Nr.","Ortsteil","Gruppenart","Gruppengröße",null,null,"Öffnungszeiten/Woche","Sonstige Festlegungen","Kitaname\n","Träger","Förderzeitraum"]
[null,null,null,"U3","Ü3","Hort"]
[1,"Grebin","Erg. u. Rz. altersgemischte Gruppe",5,10,null,2.5,null,"Die kleinen Strolche der Gemeinde Grebin","Gemeinde Grebin","01.01.2021-31.12.2024"]
[2,"Grebin","Erg. u. Rz. kleine Krippengruppe (5)",5,null,null,10,null,"Die kleinen Strolche der Gemeinde Grebin","Gemeinde Grebin","01.01.2021-31.12.2024"]
[3,"Grebin","Erg. u. Rz. Kindergartengruppe",null,20,null,10,null,"Die kleinen Strolche der Gemeinde Grebin","Gemeinde Grebin","01.01.2021-31.12.2024"]
[4,"Grebin","Erg. u. Rz. altersgemischte Gruppe",5,10,null,5,null,"Die kleinen Strolche der Gemeinde Grebin","Gemeinde Grebin","01.01.2021-31.12.2024"]
[5,"Grebin","Krippengruppe",10,null,null,27.5,null,"Die kleinen Strolche der Gemeinde Grebin","Gemeinde Grebin","01.01.2021-31.12.2024"]
[6,"Grebin","Kindergartengruppe",null,20,null,27.5,null,"Die kleinen Strolche der Gemeinde Grebin","Gemeinde Grebin","01.01.2021-31.12.2024"]
[7,"Grebin","Natur-Kindergartengruppe",null,16,null,27.5,null,"Die kleinen Strolche der Gemeinde Grebin","Gemeinde Grebin","01.01.2021-31.12.2024"]
[8,"Dersau","Erg. u. Rz. kleine altersgemischte Gruppe",3,4,null,5,null,"Fritz-Joost-Kindergarten der Gemeinde Dersau","Gemeinde Dersau","01.01.2021-31.12.2024"]
[9,"Dersau","Erg. u. Rz. kleine Kindergartengruppe (10)",null,10,null,5,null,"Fritz-Joost-Kindergarten der Gemeinde Dersau","Gemeinde Dersau","01.01.2021-31.12.2024"]
[10,"Dersau","Erg. u. Rz. altersgemischte Gruppe",5,10,null,5,null,"Fritz-Joost-Kindergarten der Gemeinde Dersau","Gemeinde Dersau","01.01.2021-31.12.2024"]
[11,"Dersau","Kindergartengruppe",null,20,null,20,null,"Fritz-Joost-Kindergarten der Gemeinde Dersau","Gemeinde Dersau","01.01.2021-31.12.2024"]
[12,"Dersau","Krippengruppe",10,null,null,35,null,"Fritz-Joost-Kindergarten der Gemeinde Dersau","Gemeinde Dersau","01.01.2021-31.12.2024"]
[13,"Dersau","Kindergartengruppe",null,20,null,35,null,"Fritz-Joost-Kindergarten der Gemeinde Dersau","Gemeinde Dersau","01.01.2021-31.12.2024"]
[14,"Nehmten","altersgemischte Gruppe",5,10,null,35,null,"Kindergarten Liliput der Gemeinde Nehmten","Gemeinde Nehmten","01.01.2021-31.12.2024"]
[15,"Nehmten","Erg. u. Rz. kleine altersgemischte Gruppe",5,10,null,2.5,null,"Kindergarten Liliput der Gemeinde Nehmten","Gemeinde Nehmten","01.01.2021-31.12.2024"]
[16,"Rathjensdorf","altersgemischte Gruppe",5,10,null,27.5,null,"Kindergarten Rathjensdorf der Gemeinde Rathjensdorf","Gemeinde Rathjensdorf","01.01.2021-31.12.2024"]
[17,"Rathjensdorf","Erg. u. Rz. altersgemischte Gruppe",5,10,null,5,null,"Kindergarten Rathjensdorf der Gemeinde Rathjensdorf","Gemeinde Rathjensdorf","01.01.2021-31.12.2024"]
[18,"Rathjensdorf","Erg. u. Rz. kleine altersgemischte Gruppe",3,4,null,2.5,null,"Kindergarten Rathjensdorf der Gemeinde Rathjensdorf","Gemeinde Rathjensdorf","01.01.2021-31.12.2024"]
[19,"Rathjensdorf","Kindergartengruppe",null,20,null,27.5,null,"Kindergarten Rathjensdorf der Gemeinde Rathjensdorf","Gemeinde Rathjensdorf","01.01.2021-31.12.2024"]
[20,"Kalübbe","altersgemischte Gruppe",5,10,null,34,null,"Kinderstube Kalübbe e.V.","Kinderstube Kalübbe e.V.","01.01.2021-31.12.2024"]
[21]
[22]
[23]
[24]
[25]
[26]
[27]
[28]
[29]
["Plätze U3",null,null,{"$f":"SUMIF(C6:C34, \"Krippengruppe\", D6:D34) + SUMIF(C6:C34, \"altersgemischte Gruppe\", D6:D34) + SUMIF(C6:C34, \"kleine*\", D6:D34)","v":35}]
["Plätze Ü3",null,null,null,{"$f":" SUMIF(C6:C34, \"Kindergartengruppe\", E6:E34) + SUMIF(C6:C34, \"altersgemischte Gruppe\",E6:E34) + SUMIF(C6:C34, \"Natur-Kindergartengruppe\", E6:E34) + SUMIF(C6:C34, \"mittlere Kindergartengruppe*\", E6:E34) +   SUMIF(C6:C34, \"integrative Kindergartengruppe\", E6:E34) + SUMIF(C6:C34, \"kleine Kinderg*\", E6:E34)","v":126},{"$f":"SUMIF(C16:C34, \"Kindergartengruppe\", F16:F34) + SUMIF(C16:C34, \"mittlere Kindergartengruppe (15)\", F16:F34) + SUMIF(C16:C34, \"kleine Kindergartengruppe (10)\", F16:F34)","v":0}]
["Plätze gesamt",null,null,null,null,{"$f":"SUM(D35:F36)","v":161}]
[null,null,null,null,"Kindertagespflege"]
["Plätze U3",null,null,10]
["Plätze Ü3",null,null,null,0,0]
["Plätze gesamt",null,null,null,null,{"$f":"SUM(D39:F40)","v":10}]
[null,null,null,null,"Plätze gesamt"]
["Plätze U3",null,null,{"$f":"D39+D35","v":45}]
["Plätze Ü3",null,null,null,{"$f":"E40+E36","v":126},{"$f":"F40+F36","v":0}]
["Plätze gesamt",null,null,null,null,{"$f":"SUM(D43:F44)","v":171}]

{"sheet":"Planungsraum 13","index":7,"n_rows":59,"n_cols":11,"rows_kept":59,"cut":false,"hidden":false,"merged":[[3,8,4,8],[3,10,4,10],[3,0,4,0],[3,1,4,1],[3,2,4,2],[3,3,3,5],[3,6,4,6],[3,7,4,7]]}
[null,null,"KiTa-Bedarfsplan",null,null,null,"Kreis Plön","Planungsraum 13","Amt Preetz-Land"]
[]
[null,null,null,null,"Abschnitt 1",null,null,null,null,"Abschnitt 2"]
["Nr.","Ortsteil","Gruppenart","Gruppengröße",null,null,"Öffnungszeiten/Woche","Sonstige Festlegungen","Kitaname\n","Träger","Förderzeitraum"]
[null,null,null,"U3","Ü3","Hort"]
[1,"Schellhorn","Erg. u. Rz. mittlere Kindergartengruppe (15)",null,15,null,7.5,null,"Ev. Kindertagesstätte Pusteblume: Kindergarten","Ev.-Luth. Kirchengemeinde Preetz","01.01.2021-31.12.2024"]
[2,"Schellhorn","Erg. u. Rz. mittlere Kindergartengruppe (15)",null,15,null,7.5,null,"Ev. Kindertagesstätte Pusteblume: Kindergarten","Ev.-Luth. Kirchengemeinde Preetz","01.01.2021-31.12.2024"]
[3,"Schellhorn","Kindergartengruppe",null,20,null,25,null,"Ev. Kindertagesstätte Pusteblume: Kindergarten","Ev.-Luth. Kirchengemeinde Preetz","01.01.2021-31.12.2024"]
[4,"Schellhorn","Kindergartengruppe",null,20,null,25,null,"Ev. Kindertagesstätte Pusteblume: Kindergarten","Ev.-Luth. Kirchengemeinde Preetz","01.01.2021-31.12.2024"]
[5,"Schellhorn","Erg. u. Rz. Krippengruppe",10,null,null,10,null,"Ev. Kindertagesstätte Pusteblume: Krippe","Ev.-Luth. Kirchengemeinde Preetz","01.01.2021-31.12.2024"]
[6,"Schellhorn","Erg. u. Rz. Krippengruppe",10,null,null,10,null,"Ev. Kindertagesstätte Pusteblume: Krippe","Ev.-Luth. Kirchengemeinde Preetz","01.01.2021-31.12.2024"]
[7,"Schellhorn","Krippengruppe",10,null,null,20,null,"Ev. Kindertagesstätte Pusteblume: Krippe","Ev.-Luth. Kirchengemeinde Preetz","01.01.2021-31.12.2024"]
[8,"Schellhorn","Krippengruppe",10,null,null,20,null,"Ev. Kindertagesstätte Pusteblume: Krippe","Ev.-Luth. Kirchengemeinde Preetz","01.01.2021-31.12.2024"]
[9,"Schellhorn","Erg. u. Rz. Kleine Krippengruppe",5,null,null,2.5,null,"Ev. Kindertagesstätte Pusteblume: Krippe","Ev.-Luth. Kirchengemeinde Preetz","01.01.2021-31.12.2024"]
[10,"Schellhorn","Erg. u. Rz. Kleine Krippengruppe",5,null,null,2.5,null,"Ev. Kindertagesstätte Pusteblume: Krippe","Ev.-Luth. Kirchengemeinde Preetz","01.01.2021-31.12.2024"]
[11,"Rastorf","altersgemischte Gruppe",5,10,null,40,null,"Ev.-Luth. KiTa \"Arche Noah in Rosenfeld\"","Ev.-Luth. Kirchenkreis Plön-Segeberg (PLÖ)","01.01.2021-31.12.2024"]
[12,"Rastorf","altersgemischte Gruppe",5,10,null,40,null,"Ev.-Luth. KiTa \"Arche Noah in Rosenfeld\"","Ev.-Luth. Kirchenkreis Plön-Segeberg (PLÖ)"]
[13,"Kirchbarkau","Erg. u. Rz. Kindergartengruppe",null,20,null,5,null,"Ev.-Luth. Kita Unterm Regenbogen ","Ev.-Lutherischer Kirchenkreis Altholstein (PLÖ)","01.01.2021-31.12.2024"]
[14,"Kirchbarkau","Erg. u. Rz. kleine Krippengruppe (5)",5,null,null,5,null,"Ev.-Luth. Kita Unterm Regenbogen ","Ev.-Lutherischer Kirchenkreis Altholstein (PLÖ)","01.01.2021-31.12.2024"]
[15,"Kirchbarkau","Erg. u. Rz. kleine altersgemischte Gruppe",3,4,null,15,null,"Ev.-Luth. Kita Unterm Regenbogen ","Ev.-Lutherischer Kirchenkreis Altholstein (PLÖ)","01.01.2021-31.12.2024"]
[16,"Kirchbarkau","altersgemischte Gruppe",5,10,null,25,null,"Ev.-Luth. Kita Unterm Regenbogen ","Ev.-Lutherischer Kirchenkreis Altholstein (PLÖ)","01.01.2021-31.12.2024"]
[17,"Kirchbarkau","Krippengruppe",10,null,null,40,null,"Ev.-Luth. Kita Unterm Regenbogen ","Ev.-Lutherischer Kirchenkreis Altholstein (PLÖ)","01.01.2021-31.12.2024"]
[18,"Kirchbarkau","Kindergartengruppe",null,20,null,40,null,"Ev.-Luth. Kita Unterm Regenbogen ","Ev.-Lutherischer Kirchenkreis Altholstein (PLÖ)","01.01.2021-31.12.2024"]
[19,"Kirchbarkau","Kindergartengruppe",null,20,null,40,null,"Ev.-Luth. Kita Unterm Regenbogen ","Ev.-Lutherischer Kirchenkreis Altholstein (PLÖ)","01.01.2021-31.12.2024"]
[20]
[21,"Nettelsee","Erg. u. Rz. kleine altersgemischte Gruppe",3,4,null,5,null,"Johanniter Kindergarten Nettelsee","Johanniter-Unfall-Hilfe e.V. (PLÖ)","01.01.2021-31.12.2024"]
[22,"Nettelsee","Erg. u. Rz. Altersgemischte Gruppe",5,10,null,7.5,null,"Johanniter Kindergarten Nettelsee","Johanniter-Unfall-Hilfe e.V. (PLÖ)","01.01.2021-31.12.2024"]
[23,"Nettelsee","Kindergartengruppe",null,20,null,22.5,null,"Johanniter Kindergarten Nettelsee","Johanniter-Unfall-Hilfe e.V. (PLÖ)","01.01.2021-31.12.2024"]
[24,"Nettelsee","altersgemischte Gruppe",null,10,null,22.5,null,"Johanniter Kindergarten Nettelsee","Johanniter-Unfall-Hilfe e.V. (PLÖ)","01.01.2021-31.12.2024"]
[25,"Boksee","Natur-Kindergartengruppe",null,16,null,32.5,null,"Kindergarten Boksee e.V.","Kindergarten Boksee e.V.","01.01.2021-31.12.2024"]
[26,"Postfeld","altersgemischte Gruppe",5,10,null,36.5,null,"Kindergarten Krümelbande","Gemeinden Postfeld c/o Amt Preetz-Land","01.01.2021-31.12.2024"]
[27,"Lehmkuhlen","Erg. u. Rz. mittlere Kindergartengruppe (15)",null,15,null,15,null,"Kindergarten Lehmkuhlener Wühlmäuse","Gemeinde Lehmkuhlen c/o Amt Preetz-Land","01.01.2021-31.12.2024"]
[28,"Lehmkuhlen","Erg. u. Rz. Kindergartengruppe",null,20,null,15,null,"Kindergarten Lehmkuhlener Wühlmäuse","Gemeinde Lehmkuhlen c/o Amt Preetz-Land","01.01.2021-31.12.2024"]
[29,"Lehmkuhlen","Krippengruppe",10,null,null,26,null,"Kindergarten Lehmkuhlener Wühlmäuse","Gemeinde Lehmkuhlen c/o Amt Preetz-Land","01.01.2021-31.12.2024"]
[30,"Lehmkuhlen","Kindergartengruppe",null,20,null,25,null,"Kindergarten Lehmkuhlener Wühlmäuse","Gemeinde Lehmkuhlen c/o Amt Preetz-Land","01.01.2021-31.12.2024"]
[31,"Lehmkuhlen","Kindergartengruppe",null,20,null,25,null,"Kindergarten Lehmkuhlener Wühlmäuse","Gemeinde Lehmkuhlen c/o Amt Preetz-Land","01.01.2021-31.12.2024"]
[32,"Lehmkuhlen","Erg. u. Rz. Krippengruppe",10,null,null,3.5,null,"Kindergarten Lehmkuhlener Wühlmäuse","Gemeinde Lehmkuhlen c/o Amt Preetz-Land","01.01.2021-31.12.2024"]
[33,"Lehmkuhlen","Erg. u. Rz. Krippengruppe",10,null,null,10,null,"Kindergarten Lehmkuhlener Wühlmäuse","Gemeinde Lehmkuhlen c/o Amt Preetz-Land","01.01.2021-31.12.2024"]
[34,"Pohnsdorf","altersgemischte Gruppe",5,10,null,32.5,null,"Kindergarten Pohnsdorf e.V.","Kindergarten Pohnsdorf e.V.","01.01.2021-31.12.2024"]
[35,"Großbarkau","Natur-Kindergartengruppe",null,16,null,30,null,"Kita Natura Großbarkau","Kita Natura eG (PLÖ)","01.01.2021-31.12.2024"]
[36,"Warnau","Erg. u. Rz. mittlere Kindergartengruppe (15)",null,15,null,8,null,"Montessori Kinderhaus Warnau e.V.","Montessori Kinderhaus Warnau e.V.","01.01.2021-31.12.2024"]
[37,"Warnau","Kindergartengruppe",null,20,null,27.5,null,"Montessori Kinderhaus Warnau e.V.","Montessori Kinderhaus Warnau e.V.","01.01.2021-31.12.2024"]
[38,"Löptin","Natur-Kindergartengruppe",null,16,null,30,null,"Kita Natura Löptin","Kita Natura eG (PLÖ)","01.01.2021-31.12.2024"]
[39]
[40]
[41]
[42]
[43]
["Plätze U3",null,null,{"$f":"SUMIF(C6:C48, \"Krippengruppe\", D6:D48) + SUMIF(C6:C48, \"altersgemischte Gruppe\", D6:D48) + SUMIF(C6:C48, \"kleine*\", D6:D48)","v":65}]
["Plätze Ü3",null,null,null,{"$f":" SUMIF(C6:C48, \"Kindergartengruppe\", E6:E48) + SUMIF(C6:C48, \"altersgemischte Gruppe\",E6:E48) + SUMIF(C6:C48, \"Natur-Kindergartengruppe\", E6:E48) + SUMIF(C6:C48, \"mittlere Kindergartengruppe*\", E6:E48) +   SUMIF(C6:C48, \"integrative Kindergartengruppe\", E6:E48) + SUMIF(C6:C48, \"kleine Kinderg*\", E6:E48)","v":268},{"$f":"SUMIF(C23:C48, \"Kindergartengruppe\", F23:F48) + SUMIF(C23:C48, \"mittlere Kindergartengruppe (15)\", F23:F48) + SUMIF(C23:C48, \"kleine Kindergartengruppe (10)\", F23:F48)","v":0}]
["Plätze gesamt",null,null,null,null,{"$f":"SUM(D49:F50)","v":333}]
[null,null,null,null,"Kindertagespflege"]
["Plätze U3",null,null,65]
["Plätze Ü3",null,null,null,0,0]
["Plätze gesamt",null,null,null,null,{"$f":"SUM(D53:F54)","v":65}]
[null,null,null,null,"Plätze gesamt"]
["Plätze U3",null,null,{"$f":"D53+D49","v":130}]
["Plätze Ü3",null,null,null,{"$f":"E54+E50","v":268},{"$f":"F54+F50","v":0}]
["Plätze gesamt",null,null,null,null,{"$f":"SUM(D57:F58)","v":398}]

{"sheet":"Planungsraum 14","index":8,"n_rows":138,"n_cols":11,"rows_kept":138,"cut":false,"hidden":false,"merged":[[3,8,4,8],[3,10,4,10],[3,0,4,0],[3,1,4,1],[3,2,4,2],[3,3,3,5],[3,6,4,6],[3,7,4,7]]}
[null,null,"KiTa-Bedarfsplan",null,null,null,"Kreis Plön","Planungsraum 14","Amt Probstei"]
[]
[null,null,null,null,"Abschnitt 1",null,null,null,null,"Abschnitt 2"]
["Nr.","Ortsteil","Gruppenart","Gruppengröße",null,null,"Öffnungszeiten/Woche","Sonstige Festlegungen","Kitaname\n","Träger","Förderzeitraum"]
[null,null,null,"U3","Ü3","Hort"]
[1,"Schönberg","Kindergartengruppe",null,20,null,30,null,"ASB Kita Bullerbü Schönberg","Arbeiter-Samariter-Bund","01.01.2021-31.12.2024"]
[2,"Schönberg","Erg. u. Rz. Krippengruppe",null,10,null,5,null,"ASB Kita Bullerbü Schönberg","Arbeiter-Samariter-Bund","01.01.2021-31.12.2024"]
[3,"Schönberg","Erg. u. Rz. altersgemischte Gruppe",5,10,null,5,null,"ASB Kita Bullerbü Schönberg","Arbeiter-Samariter-Bund","01.01.2021-31.12.2024"]
[4,"Schönberg","Erg. u. Rz. altersgemischte Gruppe",5,10,null,5,null,"ASB Kita Bullerbü Schönberg","Arbeiter-Samariter-Bund","01.01.2021-31.12.2024"]
[5,"Schönberg","Erg. u. Rz. altersgemischte Gruppe",5,10,null,5,null,"ASB Kita Bullerbü Schönberg","Arbeiter-Samariter-Bund","01.01.2021-31.12.2024"]
[6,"Schönberg","Erg. u. Rz. kleine Kindergartengruppe (10)",null,10,null,5,null,"ASB Kita Bullerbü Schönberg","Arbeiter-Samariter-Bund","01.01.2021-31.12.2024"]
[7,"Schönberg","Erg. u. Rz. Krippengruppe",10,null,null,5,null,"ASB Kita Bullerbü Schönberg","Arbeiter-Samariter-Bund","01.01.2021-31.12.2024"]
[8,"Schönberg","Krippengruppe",10,null,null,30,null,"ASB Kita Bullerbü Schönberg","Arbeiter-Samariter-Bund","01.01.2021-31.12.2024"]
[9,"Schönberg","Krippengruppe",10,null,null,30,null,"ASB Kita Bullerbü Schönberg","Arbeiter-Samariter-Bund","01.01.2021-31.12.2024"]
[10,"Schönberg","altersgemischte Gruppe",5,10,null,30,null,"ASB Kita Bullerbü Schönberg","Arbeiter-Samariter-Bund","01.01.2021-31.12.2024"]
[11,"Schönberg","Kindergartengruppe",null,20,null,30,null,"AWO Kinderhaus Schönberg","AWO Landesverband Schleswig-Holstein e.V. (PLÖ)","01.01.2021-31.12.2024"]
[12,"Schönberg","Erg. u. Rz. kleine Kindergartengruppe (10)",null,10,null,10,null,"AWO Kinderhaus Schönberg","AWO Landesverband Schleswig-Holstein e.V. (PLÖ)","01.01.2021-31.12.2024"]
[13,"Schönberg","altersgemischte Gruppe",5,10,null,30,null,"AWO Kinderhaus Schönberg","AWO Landesverband Schleswig-Holstein e.V. (PLÖ)","01.01.2021-31.12.2024"]
[14,"Schönberg","Erg. u. Rz. altersgemischte Gruppe",5,10,null,5,null,"AWO Kinderhaus Schönberg","AWO Landesverband Schleswig-Holstein e.V. (PLÖ)","01.01.2021-31.12.2024"]
[15,"Schönberg","Erg. u. Rz. altersgemischte Gruppe",5,10,null,10,null,"AWO Kinderhaus Schönberg","AWO Landesverband Schleswig-Holstein e.V. (PLÖ)","01.01.2021-31.12.2024"]
[16,"Schönberg","Krippengruppe",10,null,null,35,null,"AWO Kinderhaus Schönberg","AWO Landesverband Schleswig-Holstein e.V. (PLÖ)","01.01.2021-31.12.2024"]
[17,"Schönberg","Kindergartengruppe",null,20,null,30,null,"AWO Kinderhaus Schönberg","AWO Landesverband Schleswig-Holstein e.V. (PLÖ)","01.01.2021-31.12.2024"]
[18,"Laboe","Kindergartengruppe",null,20,null,40,null,"AWO Kinderhaus Laboe","AWO Landesverband Schleswig-Holstein e.V. (PLÖ)","01.01.2021-31.12.2024"]
[19,"Laboe","Erg. u. Rz. kleine altersgemischte Gruppe",3,4,null,5,null,"AWO Kinderhaus Laboe","AWO Landesverband Schleswig-Holstein e.V. (PLÖ)","01.01.2021-31.12.2024"]
[20,"Laboe","altersgemischte Gruppe",5,10,null,30,null,"AWO Kinderhaus Laboe","AWO Landesverband Schleswig-Holstein e.V. (PLÖ)","01.01.2021-31.12.2024"]
[21,"Laboe","Krippengruppe",10,null,null,40,null,"AWO Kinderhaus Laboe","AWO Landesverband Schleswig-Holstein e.V. (PLÖ)","01.01.2021-31.12.2024"]
[22,"Laboe","Natur-Kindergartengruppe",null,16,null,25,null,"DRK Kindertagesstätte Laboe","DRK Ortsverein Laboe e.V.","01.01.2021-31.12.2024"]
[23,"Laboe","Erg. u. Rz. Kindergartengruppe",null,20,null,2.5,null,"DRK Kindertagesstätte Laboe","DRK Ortsverein Laboe e.V.","01.01.2021-31.12.2024"]
[24,"Laboe","Erg. u. Rz. Kindergartengruppe",null,20,null,2.5,null,"DRK Kindertagesstätte Laboe","DRK Ortsverein Laboe e.V.","01.01.2021-31.12.2024"]
[25,"Laboe","Erg. u. Rz. Krippengruppe",10,null,null,2.5,null,"DRK Kindertagesstätte Laboe","DRK Ortsverein Laboe e.V.","01.01.2021-31.12.2024"]
[26,"Laboe","Erg. u. Rz. Krippengruppe",10,null,null,2.5,null,"DRK Kindertagesstätte Laboe","DRK Ortsverein Laboe e.V.","01.01.2021-31.12.2024"]
[27,"Laboe","Kindergartengruppe",null,20,null,25,null,"DRK Kindertagesstätte Laboe","DRK Ortsverein Laboe e.V.","01.01.2021-31.12.2024"]
[28,"Laboe","altersgemischte Gruppe",5,10,null,25,null,"DRK Kindertagesstätte Laboe","DRK Ortsverein Laboe e.V.","01.01.2021-31.12.2024"]
[29,"Laboe","Erg. u. Rz. Kindergartengruppe",null,20,null,5,null,"DRK Kindertagesstätte Laboe","DRK Ortsverein Laboe e.V.","01.01.2021-31.12.2024"]
[30,"Laboe","Erg. u. Rz. Kindergartengruppe",null,20,null,5,null,"DRK Kindertagesstätte Laboe","DRK Ortsverein Laboe e.V.","01.01.2021-31.12.2024"]
[31,"Laboe","Erg. u. Rz. Kindergartengruppe",null,20,null,5,null,"DRK Kindertagesstätte Laboe","DRK Ortsverein Laboe e.V.","01.01.2021-31.12.2024"]
[32,"Laboe","Erg. u. Rz. Kindergartengruppe",null,20,null,5,null,"DRK Kindertagesstätte Laboe","DRK Ortsverein Laboe e.V.","01.01.2021-31.12.2024"]
[33,"Laboe","Erg. u. Rz. Kindergartengruppe",null,20,null,5,null,"DRK Kindertagesstätte Laboe","DRK Ortsverein Laboe e.V.","01.01.2021-31.12.2024"]
[34,"Laboe","Erg. u. Rz. Kindergartengruppe",null,20,null,5,null,"DRK Kindertagesstätte Laboe","DRK Ortsverein Laboe e.V.","01.01.2021-31.12.2024"]
[35,"Laboe","Erg. u. Rz. Kindergartengruppe",null,20,null,5,null,"DRK Kindertagesstätte Laboe","DRK Ortsverein Laboe e.V.","01.01.2021-31.12.2024"]
[36,"Laboe","Erg. u. Rz. Krippengruppe",10,null,null,5,null,"DRK Kindertagesstätte Laboe","DRK Ortsverein Laboe e.V.","01.01.2021-31.12.2024"]
[37,"Laboe","Erg. u. Rz. Krippengruppe",10,null,null,5,null,"DRK Kindertagesstätte Laboe","DRK Ortsverein Laboe e.V.","01.01.2021-31.12.2024"]
[38,"Laboe","Erg. u. Rz. Kleine Krippengruppe",5,null,null,5,null,"DRK Kindertagesstätte Laboe","DRK Ortsverein Laboe e.V.","01.01.2021-31.12.2024"]
[39,"Laboe","Erg. u. Rz. Krippengruppe",10,null,null,5,null,"DRK Kindertagesstätte Laboe","DRK Ortsverein Laboe e.V.","01.01.2021-31.12.2024"]
[40,"Laboe","Erg. u. Rz. Krippengruppe",10,null,null,5,null,"DRK Kindertagesstätte Laboe","DRK Ortsverein Laboe e.V.","01.01.2021-31.12.2024"]
[41,"Laboe","Erg. u. Rz. Krippengruppe",10,null,null,5,null,"DRK Kindertagesstätte Laboe","DRK Ortsverein Laboe e.V.","01.01.2021-31.12.2024"]
[42,"Laboe","Erg. u. Rz. Krippengruppe",10,null,null,5,null,"DRK Kindertagesstätte Laboe","DRK Ortsverein Laboe e.V.","01.01.2021-31.12.2024"]
[43,"Laboe","Krippengruppe",10,null,null,25,null,"DRK Kindertagesstätte Laboe","DRK Ortsverein Laboe e.V.","01.01.2021-31.12.2024"]
[44,"Laboe","Krippengruppe",10,null,null,25,null,"DRK Kindertagesstätte Laboe","DRK Ortsverein Laboe e.V.","01.01.2021-31.12.2024"]
[45,"Laboe","Natur-Kindergartengruppe",null,16,null,25,null,"DRK Kindertagesstätte Laboe","DRK Ortsverein Laboe e.V.","01.01.2021-31.12.2024"]
[46,"Laboe","Krippengruppe",10,null,null,25,null,"DRK Kindertagesstätte Laboe","DRK Ortsverein Laboe e.V.","01.01.2021-31.12.2024"]
[47,"Laboe","Krippengruppe",10,null,null,25,null,"DRK Kindertagesstätte Laboe","DRK Ortsverein Laboe e.V.","01.01.2021-31.12.2024"]
[48,"Laboe","Kindergartengruppe",null,20,null,25,null,"DRK Kindertagesstätte Laboe","DRK Ortsverein Laboe e.V.","01.01.2021-31.12.2024"]
[49,"Probsteierhagen","Kindergartengruppe",null,20,null,25,null,"DRK-KiTa Probsteierhagen","DRK-Ortsverein Probsteierhagen","01.01.2021-31.12.2024"]
[50,"Probsteierhagen","Erg. u. Rz. altersgemischte Gruppe",5,10,null,5,null,"DRK-KiTa Probsteierhagen","DRK-Ortsverein Probsteierhagen","01.01.2021-31.12.2024"]
[51,"Probsteierhagen","Erg. u. Rz. Kleine Krippengruppe",5,null,null,5,null,"DRK-KiTa Probsteierhagen","DRK-Ortsverein Probsteierhagen","01.01.2021-31.12.2024"]
[52,"Probsteierhagen","Erg. u. Rz. Kindergartengruppe",null,20,null,5,null,"DRK-KiTa Probsteierhagen","DRK-Ortsverein Probsteierhagen","01.01.2021-31.12.2024"]
[53,"Probsteierhagen","Erg. u. Rz. Kindergartengruppe",null,20,null,10,null,"DRK-KiTa Probsteierhagen","DRK-Ortsverein Probsteierhagen","01.01.2021-31.12.2024"]
[54,"Probsteierhagen","Erg. u. Rz. mittlere Kindergartengruppe (15)",null,15,null,5,null,"DRK-KiTa Probsteierhagen","DRK-Ortsverein Probsteierhagen","01.01.2021-31.12.2024"]
[55,"Probsteierhagen","Kindergartengruppe",null,20,null,25,null,"DRK-KiTa Probsteierhagen","DRK-Ortsverein Probsteierhagen","01.01.2021-31.12.2024"]
[56,"Probsteierhagen","Krippengruppe",10,null,null,35,null,"DRK-KiTa Probsteierhagen","DRK-Ortsverein Probsteierhagen","01.01.2021-31.12.2024"]
[57,"Probsteierhagen","Natur-Kindergartengruppe",null,16,null,25,null,"DRK-KiTa Probsteierhagen","DRK-Ortsverein Probsteierhagen","01.01.2021-31.12.2024"]
[58,"Laboe","altersgemischte Gruppe",5,10,null,30,null,"Ev. Kindergarten \"Kleiner Anker\"","Kirchenkreisverwaltung Segeberg/Plön","01.01.2021-31.12.2024"]
[59,"Laboe","Erg. u. Rz. altersgemischte Gruppe",5,10,null,2.5,null,"Ev. Kindergarten \"Kleiner Anker\"","Kirchenkreisverwaltung Segeberg/Plön","01.01.2021-31.12.2024"]
[60,"Laboe","Erg. u. Rz. mittlere Kindergartengruppe (15)",null,15,null,10,null,"Ev. Kindergarten \"Kleiner Anker\"","Kirchenkreisverwaltung Segeberg/Plön","01.01.2021-31.12.2024"]
[61,"Laboe","Kindergartengruppe",null,18,null,25,null,"Ev. Kindergarten \"Kleiner Anker\"","Kirchenkreisverwaltung Segeberg/Plön","01.01.2021-31.12.2024"]
[62,"Laboe","Kindergartengruppe",null,20,null,30,null,"Ev. Kindergarten \"Kleiner Anker\"","Kirchenkreisverwaltung Segeberg/Plön","01.01.2021-31.12.2024"]
[63,"Schönberg","Erg. u. Rz. altersgemischte Gruppe",5,10,null,5,null,"Evangelische KiTa Tausendfüßler","Ev.-Luth. Kichengemeinde Schönberg","01.01.2021-31.12.2024"]
[64,"Schönberg","Erg. u. Rz. Kindergartengruppe",null,20,null,5,null,"Evangelische KiTa Tausendfüßler","Ev.-Luth. Kichengemeinde Schönberg","01.01.2021-31.12.2024"]
[65,"Schönberg","Erg. u. Rz. mittlere Kindergartengruppe (15)",null,15,null,10,null,"Evangelische KiTa Tausendfüßler","Ev.-Luth. Kichengemeinde Schönberg","01.01.2021-31.12.2024"]
[66,"Schönberg","Erg. u. Rz. Kindergartengruppe",null,20,null,7.5,null,"Evangelische KiTa Tausendfüßler","Ev.-Luth. Kichengemeinde Schönberg","01.01.2021-31.12.2024"]
[67,"Schönberg","Erg. u. Rz. altersgemischte Gruppe",5,10,null,7.5,null,"Evangelische KiTa Tausendfüßler","Ev.-Luth. Kichengemeinde Schönberg","01.01.2021-31.12.2024"]
[68,"Schönberg","altersgemischte Gruppe",5,10,null,30,null,"Evangelische KiTa Tausendfüßler","Ev.-Luth. Kichengemeinde Schönberg","01.01.2021-31.12.2024"]
[69,"Schönberg","Kindergartengruppe",null,20,null,30,null,"Evangelische KiTa Tausendfüßler","Ev.-Luth. Kichengemeinde Schönberg","01.01.2021-31.12.2024"]
[70,"Schönberg","Kindergartengruppe",null,20,null,30,null,"Evangelische KiTa Tausendfüßler","Ev.-Luth. Kichengemeinde Schönberg","01.01.2021-31.12.2024"]
[71,"Schönberg","Natur-Kindergartengruppe",null,16,null,20,null,"Evangelische KiTa Tausendfüßler","Ev.-Luth. Kichengemeinde Schönberg","01.01.2021-31.12.2024"]
[72,"Schönberg","Krippengruppe",10,null,null,35,null,"Evangelische KiTa Tausendfüßler","Ev.-Luth. Kichengemeinde Schönberg","01.01.2021-31.12.2024"]
[73,"Wendtorf","Erg. u. Rz. altersgemischte Gruppe",5,10,null,7.5,null,"Gemeinschaftskindertagesstätte Wendtorf","Gemeinde Wendtorf","01.01.2021-31.12.2024"]
[74,"Wendtorf","Erg. u. Rz. altersgemischte Gruppe",5,10,null,5,null,"Gemeinschaftskindertagesstätte Wendtorf","Gemeinde Wendtorf","01.01.2021-31.12.2024"]
[75,"Wendtorf","Erg. u. Rz. mittlere Kindergartengruppe (15)",null,15,null,7.5,null,"Gemeinschaftskindertagesstätte Wendtorf","Gemeinde Wendtorf","01.01.2021-31.12.2024"]
[76,"Wendtorf","Erg. u. Rz. altersgemischte Gruppe",5,10,null,5,null,"Gemeinschaftskindertagesstätte Wendtorf","Gemeinde Wendtorf","01.01.2021-31.12.2024"]
[77,"Wendtorf","Natur-Kindergartengruppe",null,16,null,25,null,"Gemeinschaftskindertagesstätte Wendtorf","Gemeinde Wendtorf","01.01.2021-31.12.2024"]
[78,"Wendtorf","Kindergartengruppe",null,20,null,30,null,"Gemeinschaftskindertagesstätte Wendtorf","Gemeinde Wendtorf","01.01.2021-31.12.2024"]
[79,"Wendtorf","Kindergartengruppe",null,20,null,27.5,null,"Gemeinschaftskindertagesstätte Wendtorf","Gemeinde Wendtorf","01.01.2021-31.12.2024"]
[80,"Wendtorf","Krippengruppe",10,null,null,32.5,null,"Gemeinschaftskindertagesstätte Wendtorf","Gemeinde Wendtorf","01.01.2021-31.12.2024"]
[81,"Wendtorf","Krippengruppe",10,null,null,27.5,null,"Gemeinschaftskindertagesstätte Wendtorf","Gemeinde Wendtorf","01.01.2021-31.12.2024"]
[82,"Schönberg","Hortgruppe",null,null,20,27.5,null,"Hort Schönberg","Der Schulverband Probstei","01.01.2021-31.12.2024"]
[83,"Schönberg","Hortgruppe",null,null,20,27.5,null,"Hort Schönberg","Der Schulverband Probstei","01.01.2021-31.12.2024"]
[84,"Schönberg","Hortgruppe",null,null,20,27.5,null,"Hort Schönberg","Der Schulverband Probstei","01.01.2021-31.12.2024"]
[85,"Schönberg","Hortgruppe",null,null,20,19,null,"Hort Schönberg","Der Schulverband Probstei","01.01.2021-31.12.2024"]
[null,"Schönberg","Hortgruppe",null,null,20,24,null,"Hort Schönberg","Der Schulverband Probstei","01.01.2021-31.12.2024"]
[86,"Schönberg","integrative Kindergartengruppe",null,15,null,30,null,"Integrativer Kindergarten Regenbogen - Außenstelle Schönberg","Lebenshilfewerk Kreis Plön gGmbH","01.01.2021-31.12.2024"]
[87,"Schönberg","integrative Kindergartengruppe",null,15,null,30,null,"Integrativer Kindergarten Regenbogen - Außenstelle Schönberg","Lebenshilfewerk Kreis Plön gGmbH","01.01.2021-31.12.2024"]
[88,"Stoltenberg","Kindergartengruppe",null,20,null,35,null,"Johanniter Kindertagesstätte \"Die Schatzinsel\"","Johanniter-Unfall-Hilfe e.V. (PLÖ)","01.01.2021-31.12.2024"]
[89,"Schönberg","Natur-Kindergartengruppe",null,16,null,35,null,"Johanniter Kindertagesstätte Strandpiraten","Johanniter-Unfall-Hilfe e.V. (PLÖ)","01.01.2021-31.12.2024"]
[90,"Schönberg","altersgemischte Gruppe",5,10,null,35,null,"Johanniter Kindertagesstätte Strandpiraten","Johanniter-Unfall-Hilfe e.V. (PLÖ)","01.01.2021-31.12.2024"]
[91,"Schönberg","Erg. u. Rz. altersgemischte Gruppe",5,10,null,10,null,"Johanniter Kindertagesstätte Strandpiraten","Johanniter-Unfall-Hilfe e.V. (PLÖ)","01.01.2021-31.12.2024"]
[92,"Schönberg","Kindergartengruppe",null,20,null,32.5,null,"Johanniter Kindertagesstätte Strandpiraten","Johanniter-Unfall-Hilfe e.V. (PLÖ)","01.01.2021-31.12.2024"]
[93,"Köhn","altersgemischte Gruppe",5,10,null,35,null,"Kindertagesstätte \"Peter Pan\" der Gemeinde Köhn","Gemeinde Köhn","01.01.2021-31.12.2024"]
[94,"Stein","Kindergartengruppe",null,20,null,30,null,"Kindertagesstätte der Gemeinde Stein","Gemeinde Stein","01.01.2021-31.12.2024"]
[95,"Stein","Krippengruppe",10,null,null,30,null,"Kindertagesstätte der Gemeinde Stein","Gemeinde Stein","01.01.2021-31.12.2024"]
[96,"Stein","Erg. u. Rz. altersgemischte Gruppe",5,10,null,2.5,null,"Kindertagesstätte der Gemeinde Stein","Gemeinde Stein","01.01.2021-31.12.2024"]
[97,"Stein","Erg. u. Rz. altersgemischte Gruppe",5,10,null,10,null,"Kindertagesstätte der Gemeinde Stein","Gemeinde Stein","01.01.2021-31.12.2024"]
[98,"Stein","altersgemischte Gruppe",5,10,null,30,null,"Kindertagesstätte der Gemeinde Stein","Gemeinde Stein","01.01.2021-31.12.2024"]
[99,"Schönberg","altersgemischte Gruppe",5,10,null,30,null,"Kita Kunterbunt Probstei","Kita Kunterbunt Probstei e.V.","01.01.2021-31.12.2024"]
[100,"Schönberg","Erg. u. Rz. Kindergartengruppe",null,20,null,5,null,"Kita Kunterbunt Probstei","Kita Kunterbunt Probstei e.V.","01.01.2021-31.12.2024"]
[101,"Schönberg","Erg. u. Rz. Krippengruppe",10,null,null,5,null,"Kita Kunterbunt Probstei","Kita Kunterbunt Probstei e.V.","01.01.2021-31.12.2024"]
[102,"Schönberg","Erg. u. Rz. Kindergartengruppe",null,20,null,15,null,"Kita Kunterbunt Probstei","Kita Kunterbunt Probstei e.V.","01.01.2021-31.12.2024"]
[103,"Schönberg","Krippengruppe",10,null,null,40,null,"Kita Kunterbunt Probstei","Kita Kunterbunt Probstei e.V.","01.01.2021-31.12.2024"]
[104,"Schönberg","Kindergartengruppe",null,20,null,30,null,"Kita Kunterbunt Probstei","Kita Kunterbunt Probstei e.V.","01.01.2021-31.12.2024"]
[105,"Krummbek","Kindergartengruppe",null,18,null,30,"Natur-/Bauernhofpädagogik","Kita Natura Krummbek","Kita Natura eG (PLÖ)","01.01.2021-31.12.2024"]
[106,"Passade","Kindergartengruppe",null,18,null,30,"Natur-/Bauernhofpädagogik","Kita NATURA Passade","Kita Natura eG (PLÖ)","01.01.2021-31.12.2024"]
[107,"Stakendorf","Erg. u. Rz. kleine Kindergartengruppe (10)",null,10,null,5,null,"KitaStoppelhopser Stakendorf","Elternverein Kita Stoppelhopser e.V.","01.01.2021-31.12.2024"]
[108,"Stakendorf","altersgemischte Gruppe",5,10,null,25,null,"KitaStoppelhopser Stakendorf","Elternverein Kita Stoppelhopser e.V.","01.01.2021-31.12.2024"]
[109,"Probsteierhagen","altersgemischte Gruppe",5,10,null,40,null,"Pädiko Kindertagesstätte","Pädiko e. V.","01.01.2021-31.12.2024"]
[110,"Probsteierhagen","Krippengruppe",10,null,null,40,null,"Pädiko Kindertagesstätte","Pädiko e. V.","01.01.2021-31.12.2024"]
[111,"Probsteierhagen","altersgemischte Gruppe",5,10,null,40,null,"Pädiko Kindertagesstätte","Pädiko e. V.","01.01.2021-31.12.2024"]
[112,"Schönberg","Krippengruppe",10,null,null,30,"Früh- und Spätdienst i.R.v. Randzeiten","offen","offen","2024-12-31"]
[113,"Schönberg","altersgemischte Gruppe",5,10,null,30,"Früh- und Spätdienst i.R.v. Randzeiten","offen","offen","2024-12-31"]
[null,"Barsbek","Kindergartengruppe",0,18,0,null,"Natur-/Bauernhofpädagogik","Kita NATURA Barsbek","Kita Natura eG (PLÖ)","01.08.2023-01.08.2027"]
[]
[]
[]
[]
[]
[]
[]
["Plätze U3",null,null,{"$f":"SUMIF(C6:C127, \"Krippengruppe\", D6:D127) + SUMIF(C6:C127, \"altersgemischte Gruppe\", D6:D127) + SUMIF(C6:C127, \"kleine*\", D6:D127)","v":230}]
["Plätze Ü3",null,null,null,{"$f":" SUMIF(C6:C127, \"Kindergartengruppe\", E6:E127) + SUMIF(C6:C127, \"altersgemischte Gruppe\",E6:E127) + SUMIF(C6:C127, \"Natur-Kindergartengruppe\", E6:E127) + SUMIF(C6:C127, \"mittlere Kindergartengruppe*\", E6:E127) +   SUMIF(C6:C127, \"integrative Kindergartengruppe\", E6:E127) + SUMIF(C6:C127, \"kleine Kinderg*\", E6:E127)","v":678},{"$f":"SUMIF(C79:C127, \"Kindergartengruppe\", F79:F127) + SUMIF(C79:C127, \"mittlere Kindergartengruppe (15)\", F79:F127) + SUMIF(C79:C127, \"kleine Kindergartengruppe (10)\", F79:F127)","v":0}]
["Plätze gesamt",null,null,null,null,{"$f":"SUM(D128:F129)","v":908}]
[null,null,null,null,"Kindertagespflege"]
["Plätze U3",null,null,60]
["Plätze Ü3",null,null,null,0,0]
["Plätze gesamt",null,null,null,null,{"$f":"SUM(D132:F133)","v":60}]
[null,null,null,null,"Plätze gesamt"]
["Plätze U3",null,null,{"$f":"D132+D128","v":290}]
["Plätze Ü3",null,null,null,{"$f":"E133+E129","v":678},{"$f":"F133+F129","v":0}]
["Plätze gesamt",null,null,null,null,{"$f":"SUM(D136:F137)","v":968}]

{"sheet":"Planungsraum 15","index":9,"n_rows":128,"n_cols":11,"rows_kept":128,"cut":false,"hidden":false,"merged":[[3,8,4,8],[3,10,4,10],[3,0,4,0],[3,1,4,1],[3,2,4,2],[3,3,3,5],[3,6,4,6],[3,7,4,7]]}
[null,null,"KiTa-Bedarfsplan",null,null,null,"Kreis Plön","Planungsraum 15","Amt Schrevenborn"]
[]
[null,null,null,null,"Abschnitt 1",null,null,null,null,"Abschnitt 2"]
["Nr.","Ortsteil","Gruppenart","Gruppengröße",null,null,"Öffnungszeiten/Woche","Sonstige Festlegungen","Kitaname\n","Träger","Förderzeitraum"]
[null,null,null,"U3","Ü3","Hort"]
[1,"Mönkeberg","altersgemischte Gruppe",5,10,null,45,null,"AWO Kinderhaus Mönkeberg","AWO Landesverband Schleswig-Holstein e.V. (PLÖ)","01.01.2021-31.12.2024"]
[2,"Mönkeberg","Kindergartengruppe",null,20,null,35,null,"AWO Kinderhaus Mönkeberg","AWO Landesverband Schleswig-Holstein e.V. (PLÖ)","01.01.2021-31.12.2024"]
[3,"Mönkeberg","Kindergartengruppe",null,20,null,35,null,"AWO Kinderhaus Mönkeberg","AWO Landesverband Schleswig-Holstein e.V. (PLÖ)","01.01.2021-31.12.2024"]
[4,"Mönkeberg","Kindergartengruppe",null,20,null,45,null,"AWO Kinderhaus Mönkeberg","AWO Landesverband Schleswig-Holstein e.V. (PLÖ)","01.01.2021-31.12.2024"]
[5,"Mönkeberg","Krippengruppe",10,null,null,35,null,"AWO Kinderhaus Mönkeberg","AWO Landesverband Schleswig-Holstein e.V. (PLÖ)","01.01.2021-31.12.2024"]
[6,"Mönkeberg","Krippengruppe",10,null,null,45,null,"AWO Kinderhaus Mönkeberg","AWO Landesverband Schleswig-Holstein e.V. (PLÖ)","01.01.2021-31.12.2024"]
[7,"Mönkeberg","Erg. u. Rz.kleine Kindergarten",0,10,null,5,null,"AWO Kinderhaus Mönkeberg","AWO Landesverband Schleswig-Holstein e.V. (PLÖ)","01.01.2021-31.12.2024"]
[8,"Mönkeberg","Erg. u. Rz. kleine Kindergarten",0,10,null,5,null,"AWO Kinderhaus Mönkeberg","AWO Landesverband Schleswig-Holstein e.V. (PLÖ)","01.01.2021-31.12.2024"]
[9,"Mönkeberg","Erg. u. Rz. Kindergartengruppe",null,20,null,5,null,"AWO Kinderhaus Mönkeberg","AWO Landesverband Schleswig-Holstein e.V. (PLÖ)","01.01.2021-31.12.2024"]
[10,"Schönkirchen","Kindergartengruppe",null,20,null,37.5,null,"AWO Kinderhaus Schönkirchen","AWO Landesverband Schleswig-Holstein e.V. (PLÖ)","01.01.2021-31.12.2024"]
[11,"Schönkirchen","Kindergartengruppe",null,20,null,37.5,null,"AWO Kinderhaus Schönkirchen","AWO Landesverband Schleswig-Holstein e.V. (PLÖ)","01.01.2021-31.12.2024"]
[12,"Schönkirchen","Erg. u. Rz. Kindergartengruppe",null,20,null,5,null,"AWO Kinderhaus Schönkirchen","AWO Landesverband Schleswig-Holstein e.V. (PLÖ)","01.01.2021-31.12.2024"]
[null,"Schönkirchen","Erg. u. Rz. Kindergartengruppe",null,20,null,5,null,"AWO Kinderhaus Schönkirchen","AWO Landesverband Schleswig-Holstein e.V. (PLÖ)","01.01.2021-31.12.2024"]
[null,"Schönkirchen","Erg. u. Rz. Krippengruppe",10,null,null,5,null,"AWO Kinderhaus Schönkirchen","AWO Landesverband Schleswig-Holstein e.V. (PLÖ)","01.01.2021-31.12.2024"]
[13,"Schönkirchen","Kindergartengruppe",null,20,null,37.5,null,"AWO Kinderhaus Schönkirchen","AWO Landesverband Schleswig-Holstein e.V. (PLÖ)","01.01.2021-31.12.2024"]
[14,"Schönkirchen","Krippengruppe",10,null,null,37.5,null,"AWO Kinderhaus Schönkirchen","AWO Landesverband Schleswig-Holstein e.V. (PLÖ)","01.01.2021-31.12.2024"]
[15,"Schönkirchen","Krippengruppe",10,null,null,37.5,null,"AWO Kinderhaus Schönkirchen","AWO Landesverband Schleswig-Holstein e.V. (PLÖ)","01.01.2021-31.12.2024"]
[16,"Schönkirchen","Erg. u. Rz. kleine Kindergartengruppe (10)",null,10,null,7.5,null,"AWO Kinderhaus Schönkirchen","AWO Landesverband Schleswig-Holstein e.V. (PLÖ)","01.01.2021-31.12.2024"]
[17,"Schönkirchen","Erg. u. Rz. kleine Krippengruppe (5)",5,null,null,7.5,null,"AWO Kinderhaus Schönkirchen","AWO Landesverband Schleswig-Holstein e.V. (PLÖ)","01.01.2021-31.12.2024"]
[18,"Schönkirchen","Natur-Kindergartengruppe",null,16,null,37.5,null,"AWO Kinderhaus Schönkirchen","AWO Landesverband Schleswig-Holstein e.V. (PLÖ)","01.01.2021-31.12.2024"]
[19,"Schönkirchen","Kindergartengruppe",null,20,null,37.5,null,"AWO Kinderhaus Schönkirchen","AWO Landesverband Schleswig-Holstein e.V. (PLÖ)","01.01.2021-31.12.2024"]
[20,"Heikendorf","altersgemischte Gruppe",5,10,null,30,null,"AWO Kita Heikendorf","AWO Landesverband Schleswig-Holstein e.V. (PLÖ)","01.01.2021-31.12.2024"]
[21,"Heikendorf","altersgemischte Gruppe",5,10,null,30,null,"AWO Kita Heikendorf","AWO Landesverband Schleswig-Holstein e.V. (PLÖ)","01.01.2021-31.12.2024"]
[22,"Heikendorf","Kindergartengruppe",null,20,null,40,null,"AWO Kita Heikendorf","AWO Landesverband Schleswig-Holstein e.V. (PLÖ)","01.01.2021-31.12.2024"]
[23,"Heikendorf","Erg. u. Rz. kleine altersgemischte Gruppe",3,4,null,5,null,"AWO Kita Heikendorf","AWO Landesverband Schleswig-Holstein e.V. (PLÖ)","01.01.2021-31.12.2024"]
[24,"Heikendorf","Krippengruppe",10,null,null,40,null,"AWO Kita Heikendorf","AWO Landesverband Schleswig-Holstein e.V. (PLÖ)","01.01.2021-31.12.2024"]
[25,"Heikendorf","Krippengruppe",10,null,null,40,null,"AWO Kita Heikendorf","AWO Landesverband Schleswig-Holstein e.V. (PLÖ)","01.01.2021-31.12.2024"]
[26,"Heikendorf","Erg. u. Rz. kleine altersgemischte Gruppe",3,4,null,5,null,"AWO Kita Heikendorf","AWO Landesverband Schleswig-Holstein e.V. (PLÖ)","01.01.2021-31.12.2024"]
[27,"Heikendorf","Kindergartengruppe",null,20,null,40,null,"AWO Kita Heikendorf","AWO Landesverband Schleswig-Holstein e.V. (PLÖ)","01.01.2021-31.12.2024"]
[28,"Schönkirchen","Erg. u. Rz. altersgemischte Gruppe",5,10,null,5,null,"Ev. Kindertagesstätte „Die Kirchenmäuse“","Ev.-Lutherischer Kirchenkreis Altholstein (PLÖ)","01.01.2021-31.12.2024"]
[29,"Schönkirchen","Erg. u. Rz. kleine Kindergartengruppe (10)",null,10,null,5,null,"Ev. Kindertagesstätte „Die Kirchenmäuse“","Ev.-Lutherischer Kirchenkreis Altholstein (PLÖ)","01.01.2021-31.12.2024"]
[30,"Schönkirchen","Kindergartengruppe",null,20,null,30,null,"Ev. Kindertagesstätte „Die Kirchenmäuse“","Ev.-Lutherischer Kirchenkreis Altholstein (PLÖ)","01.01.2021-31.12.2024"]
[31,"Schönkirchen","Krippengruppe",10,null,null,40,null,"Ev. Kindertagesstätte „Die Kirchenmäuse“","Ev.-Lutherischer Kirchenkreis Altholstein (PLÖ)","01.01.2021-31.12.2024"]
[32,"Schönkirchen","Kindergartengruppe",null,20,null,40,null,"Ev. Kindertagesstätte „Die Kirchenmäuse“","Ev.-Lutherischer Kirchenkreis Altholstein (PLÖ)","01.01.2021-31.12.2024"]
[33,"Schönkirchen","Krippengruppe",10,null,null,40,null,"Ev. Kindertagesstätte „Die Kirchenmäuse“","Ev.-Lutherischer Kirchenkreis Altholstein (PLÖ)","01.01.2021-31.12.2024"]
[34,"Mönkeberg","Kindergartengruppe",null,20,null,35,null,"Ev. Kindertagesstätte Regenbogenfische","Ev.-Lutherischer Kirchenkreis Altholstein (PLÖ)","01.01.2021-31.12.2024"]
[35,"Mönkeberg","Erg. u. Rz. Kindergartengruppe",null,20,null,10,null,"Ev. Kindertagesstätte Regenbogenfische","Ev.-Lutherischer Kirchenkreis Altholstein (PLÖ)","01.01.2021-31.12.2024"]
[36,"Mönkeberg","Erg. u. Rz. kleine Kindergartengruppe (10)",null,10,null,10,null,"Ev. Kindertagesstätte Regenbogenfische","Ev.-Lutherischer Kirchenkreis Altholstein (PLÖ)","01.01.2021-31.12.2024"]
[37,"Mönkeberg","Kindergartengruppe",null,20,null,35,null,"Ev. Kindertagesstätte Regenbogenfische","Ev.-Lutherischer Kirchenkreis Altholstein (PLÖ)","01.01.2021-31.12.2024"]
[38,"Mönkeberg","Krippengruppe",10,null,null,45,null,"Ev. Kindertagesstätte Regenbogenfische","Ev.-Lutherischer Kirchenkreis Altholstein (PLÖ)","01.01.2021-31.12.2024"]
[39,"Heikendorf","Erg. u. Rz. Kindergartengruppe",null,20,null,5,null,"Ev. Kindertagesstätte Upendo","Ev.-Lutherischer Kirchenkreis Altholstein (PLÖ)","01.01.2021-31.12.2024"]
[40,"Heikendorf","Erg. u. Rz. Kindergartengruppe",null,20,null,5,null,"Ev. Kindertagesstätte Upendo","Ev.-Lutherischer Kirchenkreis Altholstein (PLÖ)","01.01.2021-31.12.2024"]
[41,"Heikendorf","Erg. u. Rz.Kindergartengruppe",null,20,null,5,null,"Ev. Kindertagesstätte Upendo","Ev.-Lutherischer Kirchenkreis Altholstein (PLÖ)","01.01.2021-31.12.2024"]
[42,"Heikendorf","Erg. u. Rz. mittlere Kindergartengruppe (10)",null,15,null,5,null,"Ev. Kindertagesstätte Upendo","Ev.-Lutherischer Kirchenkreis Altholstein (PLÖ)","01.01.2021-31.12.2024"]
[43,"Heikendorf","Krippengruppe",10,null,null,40,null,"Ev. Kindertagesstätte Upendo","Ev.-Lutherischer Kirchenkreis Altholstein (PLÖ)","01.01.2021-31.12.2024"]
[44,"Heikendorf","integrative Kindergartengruppe",null,15,null,30,null,"Ev. Kindertagesstätte Upendo","Ev.-Lutherischer Kirchenkreis Altholstein (PLÖ)","01.01.2021-31.12.2024"]
[45,"Heikendorf","Kindergartengruppe",null,20,null,30,null,"Ev. Kindertagesstätte Upendo","Ev.-Lutherischer Kirchenkreis Altholstein (PLÖ)","01.01.2021-31.12.2024"]
[46,"Heikendorf","Kindergartengruppe",null,20,null,30,null,"Ev. Kindertagesstätte Upendo","Ev.-Lutherischer Kirchenkreis Altholstein (PLÖ)","01.01.2021-31.12.2024"]
[47,"Heikendorf","Erg. u. Rz. altersgemischte Gruppe",5,10,null,5,null,"Fördekindergarten Heikendorf","Gemeinde Heikendorf","01.01.2021-31.12.2024"]
[48,"Heikendorf","Erg. u. Rz. altersgemischte Gruppe",5,10,null,7.5,null,"Fördekindergarten Heikendorf","Gemeinde Heikendorf","01.01.2021-31.12.2024"]
[49,"Heikendorf","Erg. u. Rz. Krippengruppe",10,null,null,5,null,"Fördekindergarten Heikendorf","Gemeinde Heikendorf","01.01.2021-31.12.2024"]
[50,"Heikendorf","Erg. u. Rz. kleine Krippengruppe (5)",5,null,null,2.5,null,"Fördekindergarten Heikendorf","Gemeinde Heikendorf","01.01.2021-31.12.2024"]
[51,"Heikendorf","Erg. u. Rz. mittlere Kindergartengruppe (15)",null,15,null,5,null,"Fördekindergarten Heikendorf","Gemeinde Heikendorf","01.01.2021-31.12.2024"]
[52,"Heikendorf","Kindergartengruppe",null,20,null,30,null,"Fördekindergarten Heikendorf","Gemeinde Heikendorf","01.01.2021-31.12.2024"]
[53,"Heikendorf","altersgemischte Gruppe",5,10,null,30,null,"Fördekindergarten Heikendorf","Gemeinde Heikendorf","01.01.2021-31.12.2024"]
[54,"Heikendorf","Krippengruppe",10,null,null,35,null,"Fördekindergarten Heikendorf","Gemeinde Heikendorf","01.01.2021-31.12.2024"]
[55,"Heikendorf","Krippengruppe",10,null,null,35,null,"Fördekindergarten Heikendorf","Gemeinde Heikendorf","01.01.2021-31.12.2024"]
[56,"Mönkeberg","Erg. u. Rz. Krippengruppe",10,null,null,5,null,"Gemeindekindergarten Mönkeberg \"Die Eichhörnchen\"","Gemeinde Mönkeberg","01.01.2021-31.12.2024"]
[57,"Mönkeberg","Erg. u. Rz. Krippengruppe",10,null,null,10,null,"Gemeindekindergarten Mönkeberg \"Die Eichhörnchen\"","Gemeinde Mönkeberg","01.01.2021-31.12.2024"]
[58,"Mönkeberg","Erg. u. Rz. altersgemischte Gruppe",5,10,null,5,null,"Gemeindekindergarten Mönkeberg \"Die Eichhörnchen\"","Gemeinde Mönkeberg","01.01.2021-31.12.2024"]
[59,"Mönkeberg","Erg. u. Rz. altersgemischte Gruppe",5,10,null,10,null,"Gemeindekindergarten Mönkeberg \"Die Eichhörnchen\"","Gemeinde Mönkeberg","01.01.2021-31.12.2024"]
[60,"Mönkeberg","Krippengruppe",10,null,null,30,null,"Gemeindekindergarten Mönkeberg \"Die Eichhörnchen\"","Gemeinde Mönkeberg","01.01.2021-31.12.2024"]
[61,"Mönkeberg","altersgemischte Gruppe",5,10,null,30,null,"Gemeindekindergarten Mönkeberg \"Die Eichhörnchen\"","Gemeinde Mönkeberg","01.01.2021-31.12.2024"]
[62,"Mönkeberg","Natur-Kindergartengruppe",null,16,null,30,null,"Gemeindekindergarten Mönkeberg \"Die Eichhörnchen\"","Gemeinde Mönkeberg","01.01.2021-31.12.2024"]
[63,"Schönkirchen","altersgemischte Gruppe",5,10,null,35,null,"Johanniter Kindertagesstätte Hörnwichtel","Johanniter-Unfall-Hilfe e.V. (PLÖ)","01.01.2021-31.12.2024"]
[64,"Schönkirchen","Kindergartengruppe",null,20,null,35,null,"Johanniter Kindertagesstätte Hörnwichtel","Johanniter-Unfall-Hilfe e.V. (PLÖ)","01.01.2021-31.12.2024"]
[65,"Schönkirchen","Erg. u. Rz. altersgemischte Gruppe",5,10,null,5,null,"Johanniter Kindertagesstätte Hörnwichtel","Johanniter-Unfall-Hilfe e.V. (PLÖ)","01.01.2021-31.12.2024"]
[66,"Schönkirchen","Erg. u. Rz. Krippengruppe",10,null,null,5,null,"Johanniter Kindertagesstätte Hörnwichtel","Johanniter-Unfall-Hilfe e.V. (PLÖ)","01.01.2021-31.12.2024"]
[67,"Schönkirchen","Erg. u. Rz. altersgemischte Gruppe",5,10,null,5,null,"Johanniter Kindertagesstätte Hörnwichtel","Johanniter-Unfall-Hilfe e.V. (PLÖ)","01.01.2021-31.12.2024"]
[68,"Schönkirchen","Krippengruppe",10,null,null,35,null,"Johanniter Kindertagesstätte Hörnwichtel","Johanniter-Unfall-Hilfe e.V. (PLÖ)","01.01.2021-31.12.2024"]
[69,"Schönkirchen","Krippengruppe",10,null,null,35,null,"Johanniter Kindertagesstätte Hörnwichtel","Johanniter-Unfall-Hilfe e.V. (PLÖ)","01.01.2021-31.12.2024"]
[70,"Schönkirchen","Erg. u. Rz. integrative Kindergartengruppe",null,15,null,5,null,"Kindertagesstätte \"Kleine Wunder\" Schönkirchen","Gemeinde Schönkirchen","01.01.2021-31.12.2024"]
[71,"Schönkirchen","Erg. u. Rz. integrative Kindergartengruppe",null,15,null,10,null,"Kindertagesstätte \"Kleine Wunder\" Schönkirchen","Gemeinde Schönkirchen","01.01.2021-31.12.2024"]
[72,"Schönkirchen","Erg. u. Rz. kleine Kindergartengruppe (10)",null,10,null,5,null,"Kindertagesstätte \"Kleine Wunder\" Schönkirchen","Gemeinde Schönkirchen","01.01.2021-31.12.2024"]
[73,"Schönkirchen","Erg. u. Rz. kleine Kindergartengruppe (10)",null,10,null,5,null,"Kindertagesstätte \"Kleine Wunder\" Schönkirchen","Gemeinde Schönkirchen","01.01.2021-31.12.2024"]
[74,"Schönkirchen","Erg. u. Rz. kleine Kindergartengruppe (10)",null,10,null,5,null,"Kindertagesstätte \"Kleine Wunder\" Schönkirchen","Gemeinde Schönkirchen","01.01.2021-31.12.2024"]
[75,"Schönkirchen","Erg. u. Rz. Kindergartengruppe",null,20,null,10,null,"Kindertagesstätte \"Kleine Wunder\" Schönkirchen","Gemeinde Schönkirchen","01.01.2021-31.12.2024"]
[76,"Schönkirchen","Erg. u. Rz. mittlere Kindergartengruppe",null,15,null,10,null,"Kindertagesstätte \"Kleine Wunder\" Schönkirchen","Gemeinde Schönkirchen","01.01.2021-31.12.2024"]
[77,"Schönkirchen","Erg. u. Rz. kleine Kindergartengruppe",null,10,null,10,null,"Kindertagesstätte \"Kleine Wunder\" Schönkirchen","Gemeinde Schönkirchen","01.01.2021-31.12.2024"]
[78,"Schönkirchen","Erg. u. Rz. Krippengruppe",10,null,null,5,null,"Kindertagesstätte \"Kleine Wunder\" Schönkirchen","Gemeinde Schönkirchen","01.01.2021-31.12.2024"]
[79,"Schönkirchen","Erg. u. Rz. kleine Krippengruppe (5)",5,null,null,5,null,"Kindertagesstätte \"Kleine Wunder\" Schönkirchen","Gemeinde Schönkirchen","01.01.2021-31.12.2024"]
[80,"Schönkirchen","Kindergartengruppe",null,20,null,25,null,"Kindertagesstätte \"Kleine Wunder\" Schönkirchen","Gemeinde Schönkirchen","01.01.2021-31.12.2024"]
[81,"Schönkirchen","Krippengruppe",10,null,null,35,null,"Kindertagesstätte \"Kleine Wunder\" Schönkirchen","Gemeinde Schönkirchen","01.01.2021-31.12.2024"]
[82,"Schönkirchen","Kindergartengruppe",null,20,null,25,null,"Kindertagesstätte \"Kleine Wunder\" Schönkirchen","Gemeinde Schönkirchen","01.01.2021-31.12.2024"]
[83,"Schönkirchen","Kindergartengruppe",null,20,null,25,null,"Kindertagesstätte \"Kleine Wunder\" Schönkirchen","Gemeinde Schönkirchen","01.01.2021-31.12.2024"]
[84,"Schönkirchen","integrative Kindergartengruppe",null,15,null,25,null,"Kindertagesstätte \"Kleine Wunder\" Schönkirchen","Gemeinde Schönkirchen","01.01.2021-31.12.2024"]
[85,"Schönkirchen","Krippengruppe",10,null,null,35,null,"Kindertagesstätte \"Kleine Wunder\" Schönkirchen","Gemeinde Schönkirchen","01.01.2021-31.12.2024"]
[86,"Heikendorf","Erg. u. Rz. kleine Kindergartengruppe (10)",null,10,null,7.5,null,"Kindertagesstätte \"Vier Jahreszeiten\" Heikendorf","Gemeinde Heikendorf","01.01.2021-31.12.2024"]
[87,"Heikendorf","Erg. u. Rz. kleine Kindergartengruppe (10)",null,10,null,7.5,null,"Kindertagesstätte \"Vier Jahreszeiten\" Heikendorf","Gemeinde Heikendorf","01.01.2021-31.12.2024"]
[88,"Heikendorf","Erg. u. Rz. mittlere Kindergartengruppe (15)",null,15,null,5,null,"Kindertagesstätte \"Vier Jahreszeiten\" Heikendorf","Gemeinde Heikendorf","01.01.2021-31.12.2024"]
[89,"Heikendorf","Erg. u. Rz. kleine Krippengruppe (5)",5,null,null,5,null,"Kindertagesstätte \"Vier Jahreszeiten\" Heikendorf","Gemeinde Heikendorf","01.01.2021-31.12.2024"]
[90,"Heikendorf","Erg. u. Rz. kleine Krippengruppe (5)",5,null,null,7.5,null,"Kindertagesstätte \"Vier Jahreszeiten\" Heikendorf","Gemeinde Heikendorf","01.01.2021-31.12.2024"]
[91,"Heikendorf","Kindergartengruppe",null,20,null,30,null,"Kindertagesstätte \"Vier Jahreszeiten\" Heikendorf","Gemeinde Heikendorf","01.01.2021-31.12.2024"]
[92,"Heikendorf","Krippengruppe",10,null,null,30,null,"Kindertagesstätte \"Vier Jahreszeiten\" Heikendorf","Gemeinde Heikendorf","01.01.2021-31.12.2024"]
[93,"Heikendorf","Kindergartengruppe",null,20,null,30,null,"Kindertagesstätte \"Vier Jahreszeiten\" Heikendorf","Gemeinde Heikendorf","01.01.2021-31.12.2024"]
[94,"Heikendorf","Erg. u. Rz. altersgemischte Gruppe",5,10,null,10,null,"Probsteier Kinderhaus","Probsteier Kinderhaus e.V.","01.01.2021-31.12.2024"]
[95,"Heikendorf","Erg. u. Rz. kleine Kindergartengruppe (10)",null,10,null,5,null,"Probsteier Kinderhaus","Probsteier Kinderhaus e.V.","01.01.2021-31.12.2024"]
[96,"Heikendorf","Erg. u. Rz. Kindergartengruppe",null,20,null,10,null,"Probsteier Kinderhaus","Probsteier Kinderhaus e.V.","01.01.2021-31.12.2024"]
[97,"Heikendorf","Erg. u. Rz. Krippengruppe",10,null,null,5,null,"Probsteier Kinderhaus","Probsteier Kinderhaus e.V.","01.01.2021-31.12.2024"]
[98,"Heikendorf","Erg. u. Rz. Krippengruppe",10,null,null,5,null,"Probsteier Kinderhaus","Probsteier Kinderhaus e.V.","01.01.2021-31.12.2024"]
[99,"Heikendorf","Erg. u. Rz. altersgemischte Gruppe",5,10,null,5,null,"Probsteier Kinderhaus","Probsteier Kinderhaus e.V.","01.01.2021-31.12.2024"]
[100,"Heikendorf","Kindergartengruppe",null,20,null,25,null,"Probsteier Kinderhaus","Probsteier Kinderhaus e.V.","01.01.2021-31.12.2024"]
[101,"Heikendorf","altersgemischte Gruppe",5,10,null,25,null,"Probsteier Kinderhaus","Probsteier Kinderhaus e.V.","01.01.2021-31.12.2024"]
[102,"Heikendorf","Krippengruppe",10,null,null,35,null,"Probsteier Kinderhaus","Probsteier Kinderhaus e.V.","01.01.2021-31.12.2024"]
[103,"Heikendorf","Natur-Kindergartengruppe",null,16,null,30,null,"Wald- und Naturkindergarten Heikendorf","Wald- und Naturkindergarten Heikendorf e.V.","01.01.2021-31.12.2024"]
[104,"Heikendorf","Erg. u. Rz. Natur-Kindergartengruppe",null,16,null,2.5,null,"Wald- und Naturkindergarten Heikendorf","Wald- und Naturkindergarten Heikendorf e.V.","01.01.2021-31.12.2024"]
[null,"Heikendorf","Erg. u. Rz. Natur-Kindergartengruppe",null,16,null,5,null,"Wald- und Naturkindergarten Heikendorf","Wald- und Naturkindergarten Heikendorf e.V.","01.01.2021-31.12.2024"]
[null,"Heikendorf","Natur-Kindergartengruppe",null,16,null,30,null,"Wald- und Naturkindergarten Heikendorf","Wald- und Naturkindergarten Heikendorf e.V.","01.01.2021-31.12.2024"]
[]
[]
[]
[]
["Plätze U3",null,null,{"$f":" SUMIF(C6:C117, \"Krippengruppe\",D6:D117) + SUMIF(C6:C117, \"altersgemischte Gruppe\",D6:D117) + SUMIF(C6:C117, \"kleine*\",D6:D117)","v":225}]
["Plätze Ü3",null,null,null,{"$f":" SUMIF(C6:C117, \"Kindergartengruppe\", E6:E117) + SUMIF(C6:C117, \"altersgemischte Gruppe\",E6:E117) + SUMIF(C6:C117, \"Natur-Kindergartengruppe\", E6:E117) + SUMIF(C6:C117, \"mittlere Kindergartengruppe*\", E6:E117) +   SUMIF(C6:C117, \"integrative Kindergartengruppe\", E6:E117) + SUMIF(C6:C117, \"kleine Kinderg*\", E6:E117)","v":624},{"$f":"SUMIF(C41:C117, \"Kindergartengruppe\", F41:F117) + SUMIF(C41:C117, \"mittlere Kindergartengruppe (15)\", F41:F117) + SUMIF(C41:C117, \"kleine Kindergartengruppe (10)\", F41:F117)","v":0}]
["Plätze gesamt",null,null,null,null,{"$f":"SUM(D118:F119)","v":849}]
[null,null,null,null,"Kindertagespflege"]
["Plätze U3",null,null,48]
["Plätze Ü3",null,null,null,0,0]
["Plätze gesamt",null,null,null,null,{"$f":"SUM(D122:F123)","v":48}]
[null,null,null,null,"Plätze gesamt"]
["Plätze U3",null,null,{"$f":"D122+D118","v":273}]
["Plätze Ü3",null,null,null,{"$f":"E123+E119","v":624},{"$f":"F123+F119","v":0}]
["Plätze gesamt",null,null,null,null,{"$f":"SUM(D126:F127)","v":897}]

{"sheet":"Planungsraum 16","index":10,"n_rows":51,"n_cols":11,"rows_kept":51,"cut":false,"hidden":false,"merged":[[3,8,4,8],[3,10,4,10],[3,0,4,0],[3,1,4,1],[3,2,4,2],[3,3,3,5],[3,6,4,6],[3,7,4,7]]}
[null,null,"KiTa-Bedarfsplan",null,null,null,"Kreis Plön","Planungsraum 16","Amt Selent-Schlesen"]
[]
[null,null,null,null,"Abschnitt 1",null,null,null,null,"Abschnitt 2"]
["Nr.","Ortsteil","Gruppenart","Gruppengröße",null,null,"Öffnungszeiten/Woche","Sonstige Festlegungen","Kitaname\n","Träger","Förderzeitraum"]
[null,null,null,"U3","Ü3","Hort"]
[1,"Fargau-Pratjau","Natur-Kindergartengruppe",null,16,null,25,null,"Naturkindergarten Münstertal","NaturNah Münstertal gUG","01.01.2021-31.12.2024"]
[2,"Fargau-Pratjau","Erg. u. Rz. Natur-Kindergartengruppe",null,16,null,5,null,"Naturkindergarten Münstertal","NaturNah Münstertal gUG","01.01.2021-31.12.2024"]
[3,"Dobersdorf","Erg. u. Rz. Mittlere Kindergartengruppe",null,15,null,10,null,"AWO Kita Dobersdorf TöDoLi","AWO Landesverband Schleswig-Holstein e.V. (PLÖ)","01.01.2021-31.12.2024"]
[4,"Dobersdorf","Erg. u. Rz. Kleine Krippengruppe",5,null,null,null,null,"AWO Kita Dobersdorf TöDoLi","AWO Landesverband Schleswig-Holstein e.V. (PLÖ)","01.01.2021-31.12.2024"]
[5,"Dobersdorf","Krippengruppe",10,null,null,35,null,"AWO Kita Dobersdorf TöDoLi","AWO Landesverband Schleswig-Holstein e.V. (PLÖ)","01.01.2021-31.12.2024"]
[6,"Dobersdorf","Kindergartengruppe",null,20,null,35,null,"AWO Kita Dobersdorf TöDoLi","AWO Landesverband Schleswig-Holstein e.V. (PLÖ)","01.01.2021-31.12.2024"]
[7,"Dobersdorf","Kindergartengruppe",null,20,null,35,null,"AWO Kita Dobersdorf TöDoLi","AWO Landesverband Schleswig-Holstein e.V. (PLÖ)","01.01.2021-31.12.2024"]
[8,"Mucheln","Natur-Kindergartengruppe",null,18,null,25,null,"Die Feldmäuse Hasselburg","Verein der Feldmäuse Hasselburg e.V.","01.01.2021-31.12.2024"]
[9,"Mucheln","Natur-Kindergartengruppe",null,18,null,25,null,"Die Feldmäuse Hasselburg","Verein der Feldmäuse Hasselburg e.V.","01.01.2021-31.12.2024"]
[10,"Selent","Kindergartengruppe",null,20,null,25,null,"Johanniter Kindertagesstätte Lütte Hütte Selent","Johanniter-Unfall-Hilfe e.V. (PLÖ)","01.01.2021-31.12.2024"]
[11,"Selent","Erg. u. Rz. altersgemischte Gruppe",5,10,null,5,null,"Johanniter Kindertagesstätte Lütte Hütte Selent","Johanniter-Unfall-Hilfe e.V. (PLÖ)","01.01.2021-31.12.2024"]
[12,"Selent","Erg. u. Rz. Kindergartengruppe",null,20,null,15,null,"Johanniter Kindertagesstätte Lütte Hütte Selent","Johanniter-Unfall-Hilfe e.V. (PLÖ)","01.01.2021-31.12.2024"]
[13,"Selent","Erg. u. Rz. kleine Kindergartengruppe (10)",null,10,null,15,null,"Johanniter Kindertagesstätte Lütte Hütte Selent","Johanniter-Unfall-Hilfe e.V. (PLÖ)","01.01.2021-31.12.2024"]
[14,"Selent","Erg. u. Rz. Krippengruppe",10,null,null,15,null,"Johanniter Kindertagesstätte Lütte Hütte Selent","Johanniter-Unfall-Hilfe e.V. (PLÖ)","01.01.2021-31.12.2024"]
[15,"Selent","Krippengruppe",10,null,null,25,null,"Johanniter Kindertagesstätte Lütte Hütte Selent","Johanniter-Unfall-Hilfe e.V. (PLÖ)","01.01.2021-31.12.2024"]
[16,"Selent","Kindergartengruppe",null,20,null,25,null,"Johanniter Kindertagesstätte Lütte Hütte Selent","Johanniter-Unfall-Hilfe e.V. (PLÖ)","01.01.2021-31.12.2024"]
[17,"Selent","Natur-Kindergartengruppe",null,16,null,25,null,"Johanniter Kindertagesstätte Lütte Hütte Selent","Johanniter-Unfall-Hilfe e.V. (PLÖ)","01.01.2021-31.12.2024"]
[18,"Selent","Krippengruppe",10,null,null,25,null,"Johanniter Kindertagesstätte Lütte Hütte Selent","Johanniter-Unfall-Hilfe e.V. (PLÖ)","01.01.2021-31.12.2024"]
[19,"Selent","Krippengruppe",10,null,null,25,null,"Johanniter Kindertagesstätte Lütte Hütte Selent","Johanniter-Unfall-Hilfe e.V. (PLÖ)"]
[20,"Selent","Kindergartengruppe",null,20,null,25,null,"Johanniter Kindertagesstätte Lütte Hütte Selent","Johanniter-Unfall-Hilfe e.V. (PLÖ)"]
[21,"Martensrade","Natur-Kindergartengruppe",null,16,null,27.5,null,"Johanniter Kindertagesstätte Sonnenblume","Johanniter-Unfall-Hilfe e.V. (PLÖ)","01.01.2021-31.12.2024"]
[22,"Martensrade","Krippengruppe",10,null,null,30,null,"Johanniter Kindertagesstätte Sonnenblume","Johanniter-Unfall-Hilfe e.V. (PLÖ)","01.01.2021-31.12.2024"]
[23,"Martensrade","altersgemischte Gruppe",5,10,null,30,null,"Johanniter Kindertagesstätte Sonnenblume","Johanniter-Unfall-Hilfe e.V. (PLÖ)","01.01.2021-31.12.2024"]
[24,"Martensrade","Kindergartengruppe",null,20,null,30,null,"Johanniter Kindertagesstätte Sonnenblume","Johanniter-Unfall-Hilfe e.V. (PLÖ)","01.01.2021-31.12.2024"]
[25,"Martensrade","Erg. u. Rz. altersgemischte Gruppe",5,10,null,5,null,"Johanniter Kindertagesstätte Sonnenblume","Johanniter-Unfall-Hilfe e.V. (PLÖ)","01.01.2021-31.12.2024"]
[26,"Martensrade","Erg. u. Rz. altersgemischte Gruppe",5,10,null,5,null,"Johanniter Kindertagesstätte Sonnenblume","Johanniter-Unfall-Hilfe e.V. (PLÖ)","01.01.2021-31.12.2024"]
[27,"Martensrade","Erg. u. Rz. kleine altersgemischte Gruppe",3,4,null,2.5,null,"Johanniter Kindertagesstätte Sonnenblume","Johanniter-Unfall-Hilfe e.V. (PLÖ)","01.01.2021-31.12.2024"]
[28,"Martensrade","Erg. u. Rz. altersgemischte Gruppe",5,10,null,5,null,"Johanniter Kindertagesstätte Sonnenblume","Johanniter-Unfall-Hilfe e.V. (PLÖ)","01.01.2021-31.12.2024"]
[29]
[30]
[31]
[32]
[33]
[34]
[35]
["Plätze U3",null,null,{"$f":" SUMIF(C6:C56, \"Krippengruppe\",D6:D56) + SUMIF(C6:C56, \"altersgemischte Gruppe\",D6:D56) + SUMIF(C6:C56, \"kleine*\",D6:D56)","v":55}]
["Plätze Ü3",null,null,null,{"$f":" SUMIF(C6:C40, \"Kindergartengruppe\", E6:E40) + SUMIF(C6:C40, \"altersgemischte Gruppe\",E6:E40) + SUMIF(C6:C40, \"Natur-Kindergartengruppe\", E6:E40) + SUMIF(C6:C40, \"mittlere Kindergartengruppe*\", E6:E40) + SUMIF(C6:C40, \"integrative Kindergartengruppe\", E6:E40) + SUMIF(C6:C40, \"kleine Kinderg*\", E6:E40)","v":214},{"$f":"SUMIF(C39:C56, \"Kindergartengruppe\", F39:F56) + SUMIF(C39:C56, \"mittlere Kindergartengruppe (15)\", F39:F56) + SUMIF(C39:C56, \"kleine Kindergartengruppe (10)\", F39:F56)","v":0}]
["Plätze gesamt",null,null,null,null,{"$f":"SUM(D41:F42)","v":269}]
[null,null,null,null,"Kindertagespflege"]
["Plätze U3",null,null,15]
["Plätze Ü3",null,null,null,0,0]
["Plätze gesamt",null,null,null,null,{"$f":"SUM(D45:F46)","v":15}]
[null,null,null,null,"Plätze gesamt"]
["Plätze U3",null,null,{"$f":"D45+D41","v":70}]
["Plätze Ü3",null,null,null,{"$f":"E46+E42","v":214},{"$f":"F46+F42","v":0}]
["Plätze gesamt",null,null,null,null,{"$f":"SUM(D49:F50)","v":284}]

{"sheet":"Planungsraum 17","index":11,"n_rows":36,"n_cols":11,"rows_kept":36,"cut":false,"hidden":false,"merged":[[3,8,4,8],[3,10,4,10],[3,0,4,0],[3,1,4,1],[3,2,4,2],[3,3,3,5],[3,6,4,6],[3,7,4,7]]}
[null,null,"KiTa-Bedarfsplan",null,null,null,"Kreis Plön","Planungsraum 17","Bönebüttel"]
[]
[null,null,null,null,"Abschnitt 1",null,null,null,null,"Abschnitt 2"]
["Nr.","Ortsteil","Gruppenart","Gruppengröße",null,null,"Öffnungszeiten/Woche","Sonstige Festlegungen","Kitaname\n","Träger","Förderzeitraum"]
[null,null,null,"U3","Ü3","Hort"]
[1,"Bönebüttel","Krippengruppe",10,null,null,37.5,null,"Bönebütteler Kinnerstuuv","Waldorfkindergarten Neumünster-Einfeld e.V.","01.01.2021-31.12.2024"]
[2,"Bönebüttel","Kindergartengruppe",null,20,null,25,null,"Ev.-Luth. Kita Bönebüttel","Ev.-Luth. Kirchenkreis Altholstein","01.01.2021-31.12.2024"]
[3,"Bönebüttel","Erg. u. Rz. Kindergartengruppe",null,20,null,15,null,"Ev.-Luth. Kita Bönebüttel","Ev.-Luth. Kirchenkreis Altholstein","01.01.2021-31.12.2024"]
[4,"Bönebüttel","Erg. u. Rz. Krippengruppe",10,null,null,15,null,"Ev.-Luth. Kita Bönebüttel","Ev.-Luth. Kirchenkreis Altholstein","01.01.2021-31.12.2024"]
[5,"Bönebüttel","Erg. u. Rz. altersgemischte Gruppe",5,10,null,5,null,"Ev.-Luth. Kita Bönebüttel","Ev.-Luth. Kirchenkreis Altholstein","01.01.2021-31.12.2024"]
[6,"Bönebüttel","Erg. u. Rz. altersgemischte Gruppe",5,10,null,15,null,"Ev.-Luth. Kita Bönebüttel","Ev.-Luth. Kirchenkreis Altholstein","01.01.2021-31.12.2024"]
[7,"Bönebüttel","altersgemischte Gruppe",5,15,null,25,null,"Ev.-Luth. Kita Bönebüttel","Ev.-Luth. Kirchenkreis Altholstein","01.01.2021-31.12.2024"]
[8,"Bönebüttel","Krippengruppe",10,null,null,25,null,"Ev.-Luth. Kita Bönebüttel","Ev.-Luth. Kirchenkreis Altholstein","01.01.2021-31.12.2024"]
[9,"Bönebüttel","altersgemischte Gruppe",5,10,null,25,null,"Ev.-Luth. Kita Bönebüttel","Ev.-Luth. Kirchenkreis Altholstein","01.01.2021-31.12.2024"]
[10,"Bönebüttel","Kindergartengruppe",null,20,null,25,null,"Ev.-Luth. Kita Bönebüttel","Ev.-Luth. Kirchenkreis Altholstein","01.01.2021-31.12.2024"]
[11]
[12]
[13]
[14]
[15]
[16]
[17]
[18]
[19]
[20]
["Plätze U3",null,null,{"$f":" SUMIF(C6:C41, \"Krippengruppe\",D6:D41) + SUMIF(C6:C41, \"altersgemischte Gruppe\",D6:D41) + SUMIF(C6:C41, \"kleine*\",D6:D41)","v":30}]
["Plätze Ü3",null,null,null,{"$f":" SUMIF(C6:C25, \"Kindergartengruppe\", E6:E25) + SUMIF(C6:C25, \"altersgemischte Gruppe\",E6:E25) + SUMIF(C6:C25, \"Natur-Kindergartengruppe\", E6:E25) + SUMIF(C6:C25, \"mittlere Kindergartengruppe*\", E6:E25) + SUMIF(C6:C25, \"integrative Kindergartengruppe\", E6:E25) + SUMIF(C6:C25, \"kleine Kinderg*\", E6:E25)","v":65},{"$f":"SUMIF(C26:C41, \"Kindergartengruppe\", F26:F41) + SUMIF(C26:C41, \"mittlere Kindergartengruppe (15)\", F26:F41) + SUMIF(C26:C41, \"kleine Kindergartengruppe (10)\", F26:F41)","v":0}]
["Plätze gesamt",null,null,null,null,{"$f":"SUM(D26:F27)","v":95}]
[null,null,null,null,"Kindertagespflege"]
["Plätze U3",null,null,5]
["Plätze Ü3",null,null,null,0,0]
["Plätze gesamt",null,null,null,null,{"$f":"SUM(D30:F31)","v":5}]
[null,null,null,null,"Plätze gesamt"]
["Plätze U3",null,null,{"$f":"D30+D26","v":35}]
["Plätze Ü3",null,null,null,{"$f":"E31+E27","v":65},{"$f":"F31+F27","v":0}]
["Plätze gesamt",null,null,null,null,{"$f":"SUM(D34:F35)","v":100}]

{"sheet":"Planungsraum 18","index":12,"n_rows":37,"n_cols":11,"rows_kept":37,"cut":false,"hidden":false,"merged":[[3,8,4,8],[3,10,4,10],[3,0,4,0],[3,1,4,1],[3,2,4,2],[3,3,3,5],[3,6,4,6],[3,7,4,7]]}
[null,null,"KiTa-Bedarfsplan",null,null,null,"Kreis Plön","Planungsraum 18","Ascheberg"]
[]
[null,null,null,null,"Abschnitt 1",null,null,null,null,"Abschnitt 2"]
["Nr.","Ortsteil","Gruppenart","Gruppengröße",null,null,"Öffnungszeiten/Woche","Sonstige Festlegungen","Kitaname\n","Träger","Förderzeitraum"]
[null,null,null,"U3","Ü3","Hort"]
[1,"Ascheberg","Erg. u. Rz. kleine Krippengruppe (5)",5,null,null,2.5,null,"Kita Am Mühlenholz","Gemeinde Ascheberg, c/o. Stadt Quickborn","01.01.2021-31.12.2024"]
[2,"Ascheberg","Erg. u. Rz. mittlere Kindergartengruppe (15)",null,15,null,5,null,"Kita Am Mühlenholz","Gemeinde Ascheberg, c/o. Stadt Quickborn","01.01.2021-31.12.2024"]
[3,"Ascheberg","Erg. u. Rz. altersgemischte Gruppe",5,10,null,5,null,"Kita Am Mühlenholz","Gemeinde Ascheberg, c/o. Stadt Quickborn","01.01.2021-31.12.2024"]
[4,"Ascheberg","mittlere Kindergartengruppe (15)",null,15,null,30,null,"Kita Am Mühlenholz","Gemeinde Ascheberg, c/o. Stadt Quickborn","01.01.2021-31.12.2024"]
[5,"Ascheberg","Kindergartengruppe",null,20,null,30,null,"Kita Am Mühlenholz","Gemeinde Ascheberg, c/o. Stadt Quickborn","01.01.2021-31.12.2024"]
[6,"Ascheberg","Krippengruppe",10,null,null,30,null,"Kita Am Mühlenholz","Gemeinde Ascheberg, c/o. Stadt Quickborn","01.01.2021-31.12.2024"]
[7,"Ascheberg","Kindergartengruppe",null,20,null,30,null,"Kita Am Mühlenholz","Gemeinde Ascheberg, c/o. Stadt Quickborn","01.01.2021-31.12.2024"]
[8,"Ascheberg","mittlere Kindergartengruppe (15)",null,15,null,40,null,"Kita Am Mühlenholz","Gemeinde Ascheberg, c/o. Stadt Quickborn","01.01.2021-31.12.2024"]
[9,"Ascheberg","Kindergartengruppe",null,20,null,30,null,"Kita Am Mühlenholz","Gemeinde Ascheberg, c/o. Stadt Quickborn","01.01.2021-31.12.2024"]
[10,"Ascheberg","Erg. u. Rz. altersgemischte Gruppe",5,10,null,5,null,"Kita Am Mühlenholz","Gemeinde Ascheberg, c/o. Stadt Quickborn","01.01.2021-31.12.2024"]
[11,"Ascheberg","Erg. u. Rz. altersgemischte Gruppe",5,10,null,10,null,"Kita Am Mühlenholz","Gemeinde Ascheberg, c/o. Stadt Quickborn","01.01.2021-31.12.2024"]
[12,"Ascheberg","kleine Kindergartengruppe",null,10,null,30,null,null,"AWO Landesverband Schleswig-Holstein e.V. (PLÖ)"]
[13,"Ascheberg","Kindergartengruppe",null,20,null,30,null,null,"AWO Landesverband Schleswig-Holstein e.V. (PLÖ)"]
[14,"Ascheberg","altersgemischte Gruppe",5,10,null,30,null,null,"AWO Landesverband Schleswig-Holstein e.V. (PLÖ)"]
[15,"Ascheberg","Krippengruppe",10,null,null,30,null,null,"AWO Landesverband Schleswig-Holstein e.V. (PLÖ)"]
[16,"Ascheberg","Krippengruppe",10,null,null,30,null,null,"AWO Landesverband Schleswig-Holstein e.V. (PLÖ)"]
[17,"Ascheberg","Krippengruppe",10,null,null,30,null,null,"AWO Landesverband Schleswig-Holstein e.V. (PLÖ)"]
[18,"Ascheberg","Erg. u. Rz. altersgemischte Gruppe",5,10,null,10,"Nachmittagsangebot bis 16:00 Uhr",null,"AWO Landesverband Schleswig-Holstein e.V. (PLÖ)"]
[19]
[20]
[21]
["Plätze U3",null,null,{"$f":" SUMIF(C6:C42, \"Krippengruppe*\",D6:D42) + SUMIF(C6:C42, \"altersgemischte Gruppe\",D6:D42) + SUMIF(C6:C42, \"kleine*\",D6:D42)","v":45}]
["Plätze Ü3",null,null,null,{"$f":" SUMIF(C6:C26, \"Kindergartengruppe\", E6:E26) + SUMIF(C6:C26, \"altersgemischte Gruppe\",E6:E26) + SUMIF(C6:C26, \"Natur-Kindergartengruppe\", E6:E26) + SUMIF(C6:C26, \"mittlere Kindergartengruppe*\", E6:E26) + SUMIF(C6:C26, \"integrative Kindergartengruppe\", E6:E26) + SUMIF(C6:C26, \"kleine Kinderg*\", E6:E26)","v":130},{"$f":"SUMIF(C27:C42, \"Kindergartengruppe\", F27:F42) + SUMIF(C27:C42, \"mittlere Kindergartengruppe (15)\", F27:F42) + SUMIF(C27:C42, \"kleine Kindergartengruppe (10)\", F27:F42)","v":0}]
["Plätze gesamt",null,null,null,null,{"$f":"SUM(D27:F28)","v":175}]
[null,null,null,null,"Kindertagespflege"]
["Plätze U3",null,null,0]
["Plätze Ü3",null,null,null,0,0]
["Plätze gesamt",null,null,null,null,{"$f":"SUM(D31:F32)","v":0}]
[null,null,null,null,"Plätze gesamt"]
["Plätze U3",null,null,{"$f":"D31+D27","v":45}]
["Plätze Ü3",null,null,null,{"$f":"E32+E28","v":130},{"$f":"F32+F28","v":0}]
["Plätze gesamt",null,null,null,null,{"$f":"SUM(D35:F36)","v":175}]

{"sheet":"Planungsraum 19","index":13,"n_rows":27,"n_cols":11,"rows_kept":27,"cut":false,"hidden":false,"merged":[[3,8,4,8],[3,10,4,10],[3,0,4,0],[3,1,4,1],[3,2,4,2],[3,3,3,5],[3,6,4,6],[3,7,4,7]]}
[null,null,"KiTa-Bedarfsplan",null,null,null,"Kreis Plön","Planungsraum 19","Bösdorf"]
[]
[null,null,null,null,"Abschnitt 1",null,null,null,null,"Abschnitt 2"]
["Nr.","Ortsteil","Gruppenart","Gruppengröße",null,null,"Öffnungszeiten/Woche","Sonstige Festlegungen","Kitaname\n","Träger","Förderzeitraum"]
[null,null,null,"U3","Ü3","Hort"]
[1,"Bösdorf","altersgemischte Gruppe",5,10,null,30,null,"Ev.-Luth. Kindergarten Bösdorf","Ev.-Luth. Kirchengemeinde Plön","01.01.2021-31.12.2024"]
[2,"Bösdorf","altersgemischte Gruppe",5,10,null,30,null,"Ev.-Luth. Kindergarten Bösdorf","Ev.-Luth. Kirchengemeinde Plön","01.01.2021-31.12.2024"]
[3,"Bösdorf"]
[4,"Bösdorf","Erg. u. Rz. altersgemischte Gruppe",3,4,null,10,null,"Ev.-Luth. Kindergarten Bösdorf","Ev.-Luth. Kirchengemeinde Plön","01.01.2021-31.12.2024"]
[5]
[6]
[7]
[8]
[9]
[10]
[11]
["Plätze U3",null,null,{"$f":" SUMIF(C6:C32, \"Krippengruppe*\",D6:D32) + SUMIF(C6:C32, \"altersgemischte Gruppe\",D6:D32) + SUMIF(C6:C32, \"kleine*\",D6:D32)","v":10}]
["Plätze Ü3",null,null,null,{"$f":" SUMIF(C6:C16, \"Kindergartengruppe\", E6:E16) + SUMIF(C6:C16, \"altersgemischte Gruppe\",E6:E16) + SUMIF(C6:C16, \"Natur-Kindergartengruppe\", E6:E16) + SUMIF(C6:C16, \"mittlere Kindergartengruppe*\", E6:E16) + SUMIF(C6:C16, \"integrative Kindergartengruppe\", E6:E16) + SUMIF(C6:C16, \"kleine Kinderg*\", E6:E16)","v":20},{"$f":"SUMIF(C17:C32, \"Kindergartengruppe\", F17:F32) + SUMIF(C17:C32, \"mittlere Kindergartengruppe (15)\", F17:F32) + SUMIF(C17:C32, \"kleine Kindergartengruppe (10)\", F17:F32)","v":0}]
["Plätze gesamt",null,null,null,null,{"$f":"SUM(D17:F18)","v":30}]
[null,null,null,null,"Kindertagespflege"]
["Plätze U3",null,null,0]
["Plätze Ü3",null,null,null,0,0]
["Plätze gesamt",null,null,null,null,{"$f":"SUM(D21:F22)","v":0}]
[null,null,null,null,"Plätze gesamt"]
["Plätze U3",null,null,{"$f":"SUM(D21+D17)","v":10}]
["Plätze Ü3",null,null,null,{"$f":"E22+E18","v":20},{"$f":"F22+F18","v":0}]
["Plätze gesamt",null,null,null,null,{"$f":"SUM(D25:F26)","v":30}]